Workbook

Sheet bd
A1: Código arancelario | B1: Descripción | C1: FECHA | D1: año | E1: mes | F1: PAIS_DESC | G1: Valor FOB en US$ | H1: PESO_NETO | I1: PESO_BRUTO | J1: UNID_FIQTY | K1: UNID_FIDES | L1: EXPORTADOR | M1: PUER_DESC | N1: DESC_COM | O1: DESC_ADIC | P1: tipo | Q1: precio
A2: 0804400000 | B2: AGUACATES (PALTAS), FRESCOS O SECOS. | C2: 20120103 | D2: =LEFT(C2,4) -> 2012 | E2: =MIDB(C2,5,2) -> 01 | F2: NETHERLANDS | G2: 28748.494 | H2: 22076 | I2: 24090 | J2: 22076 | K2: KG | L2: AGROINDUSTRIAS VERDEFLOR S.A.C. | M2: ROTTERDAM | N2: PALTAS FRESCAS | O2: VARIEDAD: FUERTE, HASS SE ACOGE AL DRAWBACK SEGUN D.S. 104-95 E.F. | P2: hass/fuerte | Q2: =G2/H2 -> 1.302251042
A3: 0804400000 | B3: AGUACATES (PALTAS), FRESCOS O SECOS. | C3: 20120109 | D3: =LEFT(C3,4) -> 2012 | E3: =MIDB(C3,5,2) -> 01 | F3: NETHERLANDS | G3: 28829.028 | H3: 22076 | I3: 24000 | J3: 22076 | K3: KG | L3: AGROINDUSTRIAS VERDEFLOR S.A.C. | M3: ROTTERDAM | N3: PALTAS FRESCAS | O3: VARIEDAD: FUERTE, HASS SE ACOGE AL DRAWBACK SEGUN D.S. 104-95 E.F. | P3: hass/fuerte | Q3: =G3/H3 -> 1.305899076
A4: 0804400000 | B4: AGUACATES (PALTAS), FRESCOS O SECOS. | C4: 20120111 | D4: 2012 | E4: 01 | F4: NETHERLANDS | G4: 37911.852 | H4: 21560 | I4: 23820 | J4: 21560 | K4: KG | L4: AGROINDUSTRIAS SOLCACE SOCIEDAD ANONIMA CERRADA | M4: ROTTERDAM | N4: PALTAS FRESCAS | O4: EN CAJAS SE ACOGE AL DRAWBACK | Q4: =G4/H4 -> 1.758434694
A5: 0804400000 | B5: AGUACATES (PALTAS), FRESCOS O SECOS. | C5: 20120116 | D5: 2012 | E5: 01 | F5: NETHERLANDS | G5: 37640.951 | H5: 21120 | I5: 23350 | J5: 21120 | K5: KG | L5: KEMBLE PERU TRADING SAC | M5: ROTTERDAM | N5: PALTAS FRESCAS | O5: VARIEDAD: FUERTE SE ACOGE AL DRAWBACK SEGUN D.S. 104-95 E.F. | P5: fuerte | Q5: =G5/H5 -> 1.782241998
A6: 0804400000 | B6: AGUACATES (PALTAS), FRESCOS O SECOS. | C6: 20120117 | D6: 2012 | E6: 01 | F6: NETHERLANDS | G6: 30178.088 | H6: 22068 | I6: 23840 | J6: 22068 | K6: KG | L6: AGROINDUSTRIAS VERDEFLOR S.A.C. | M6: ROTTERDAM | N6: PALTAS FRESCAS | O6: VARIEDAD: FUERTE, HASS SE ACOGE AL DRAWBACK SEGUN D.S. 104-95 E.F. | P6: hass/fuerte | Q6: 1.367504441
A7: 0804400000 | B7: AGUACATES (PALTAS), FRESCOS O SECOS. | C7: 20120117 | D7: 2012 | E7: 01 | F7: NETHERLANDS | G7: 39351.903 | H7: 20080 | I7: 24020 | J7: 20080 | K7: KG | L7: KEMBLE PERU TRADING SAC | M7: ROTTERDAM | N7: PALTAS FRESCAS | O7: VARIEDAD: FUERTE, HASS SE ACOGE AL DRAWBACK SEGUN D.S. 104-95 E.F. | P7: hass/fuerte | Q7: 1.959756125
A8: 0804400000 | B8: AGUACATES (PALTAS), FRESCOS O SECOS. | C8: 20120118 | D8: 2012 | E8: 01 | F8: UNITED KINGDOM | G8: 27250.804 | H8: 21024 | I8: 23580 | J8: 21024 | K8: KG | L8: AGROINDUSTRIAS SOLCACE SOCIEDAD ANONIMA CERRADA | M8: TILBURY | N8: PALTAS FRESCAS | O8: EN CAJAS SE ACOGE AL DRAWBACK | Q8: 1.296175989
A9: 0804400000 | B9: AGUACATES (PALTAS), FRESCOS O SECOS. | C9: 20120118 | D9: 2012 | E9: 01 | F9: FRANCE | G9: 11.803 | H9: 7.68 | I9: 8.485 | J9: 7.68 | K9: KG | L9: PRONATUR E.I.R.L. | M9: FRANKFURT/MAIN | N9: AGUACATE (PALTA) CHOQUETA FRESCO | O9: M.S.V.C. | Q9: 1.536848958
A10: 0804400000 | B10: AGUACATES (PALTAS), FRESCOS O SECOS. | C10: 20120120 | D10: 2012 | E10: 01 | F10: NETHERLANDS | G10: 37833.433 | H10: 21228 | I10: 23380 | J10: 21228 | K10: KG | L10: AGROINDUSTRIAS SOLCACE SOCIEDAD ANONIMA CERRADA | M10: ROTTERDAM | N10: PALTAS FRESCAS | O10: EN CAJAS SE ACOGE AL DRAWBACK | Q10: 1.782241992
A11: 0804400000 | B11: AGUACATES (PALTAS), FRESCOS O SECOS. | C11: 20120120 | D11: 2012 | E11: 01 | F11: NETHERLANDS | G11: 29891.892 | H11: 21832 | I11: 23830 | J11: 21832 | K11: KG | L11: AGROINDUSTRIAS VERDEFLOR S.A.C. | M11: ROTTERDAM | N11: PALTAS FRESCAS | O11: VARIEDAD: FUERTE, HASS SE ACOGE AL DRAWBACK SEGUN D.S. 104-95 E.F. | P11: hass/fuerte | Q11: 1.369177904
A12: 0804400000 | B12: AGUACATES (PALTAS), FRESCOS O SECOS. | C12: 20120120 | D12: 2012 | E12: 01 | F12: NETHERLANDS | G12: 37640.951 | H12: 21120 | I12: 23100 | J12: 21120 | K12: KG | L12: KEMBLE PERU TRADING SAC | M12: ROTTERDAM | N12: PALTAS FRESCAS | O12: VARIEDAD: HASS SE ACOGE AL DRAWBACK SEGUN D.S. 104-95 E.F. | P12: hass | Q12: 1.782241998
A13: 0804400000 | B13: AGUACATES (PALTAS), FRESCOS O SECOS. | C13: 20120124 | D13: 2012 | E13: 01 | F13: NETHERLANDS | G13: 37640.951 | H13: 21120 | I13: 23320 | J13: 21120 | K13: KG | L13: KEMBLE PERU TRADING SAC | M13: ROTTERDAM | N13: PALTAS FRESCAS | O13: VARIEDAD: FUERTE SE ACOGE AL DRAWBACK SEGUN D.S. 104-95 E.F. | P13: fuerte | Q13: 1.782241998
A14: 0804400000 | B14: AGUACATES (PALTAS), FRESCOS O SECOS. | C14: 20120126 | D14: 2012 | E14: 01 | F14: NETHERLANDS | G14: 36589.752 | H14: 21080 | I14: 23320 | J14: 21080 | K14: KG | L14: AGROINDUSTRIAS SOLCACE SOCIEDAD ANONIMA CERRADA | M14: ROTTERDAM | N14: PALTAS FRESCAS | O14: EN CAJAS SE ACOGE AL DRAWBACK | Q14: 1.735756736
A15: 0804400000 | B15: AGUACATES (PALTAS), FRESCOS O SECOS. | C15: 20120127 | D15: 2012 | E15: 01 | F15: NETHERLANDS | G15: 21777.312 | H15: 22072 | I15: 24150 | J15: 22072 | K15: KG | L15: AGROINDUSTRIAS VERDEFLOR S.A.C. | M15: ROTTERDAM | N15: PALTAS FRESCAS | O15: VARIEDAD: FUERTE, HASS SE ACOGE AL DRAWBACK SEGUN D.S. 104-95 E.F. | P15: hass/fuerte | Q15: 0.9866487858
A16: 0804400000 | B16: AGUACATES (PALTAS), FRESCOS O SECOS. | C16: 20120127 | D16: 2012 | E16: 01 | F16: NETHERLANDS | G16: 30490.726 | H16: 21920 | I16: 23920 | J16: 21920 | K16: KG | L16: AGROINDUSTRIAS VERDEFLOR S.A.C. | M16: ROTTERDAM | N16: PALTAS FRESCAS | O16: VARIEDAD: FUERTE, HASS SE ACOGE AL DRAWBACK SEGUN D.S. 104-95 E.F. | P16: hass/fuerte | Q16: 1.391000274
A17: 0804400000 | B17: AGUACATES (PALTAS), FRESCOS O SECOS. | C17: 20120127 | D17: 2012 | E17: 01 | F17: NETHERLANDS | G17: 28036.8 | H17: 21120 | I17: 23590 | J17: 21120 | K17: KG | L17: PROCESADORA TORRE BLANCA S.A. | M17: ROTTERDAM | N17: PALTA FUERTE | O17: FRESCA - EN CAJAS DRAWBACK | P17: fuerte | Q17: 1.3275
A18: 0804400000 | B18: AGUACATES (PALTAS), FRESCOS O SECOS. | C18: 20120127 | D18: 2012 | E18: 01 | F18: NETHERLANDS | G18: 37640.951 | H18: 21120 | I18: 23210 | J18: 21120 | K18: KG | L18: KEMBLE PERU TRADING SAC | M18: ROTTERDAM | N18: PALTAS FRESCAS | O18: SE ACOGE AL DRAWBACK SEGUN D.S. 104-95 E.F. | Q18: 1.782241998
A19: 0804400000 | B19: AGUACATES (PALTAS), FRESCOS O SECOS. | C19: 20120127 | D19: 2012 | E19: 01 | F19: NETHERLANDS | G19: 37640.951 | H19: 21120 | I19: 23240 | J19: 21120 | K19: KG | L19: KEMBLE PERU TRADING SAC | M19: ROTTERDAM | N19: PALTAS FRESCAS | O19: SE ACOGE AL DRAWBACK SEGUN D.S. 104-95 E.F. | Q19: 1.782241998
A20: 0804400000 | B20: AGUACATES (PALTAS), FRESCOS O SECOS. | C20: 20120130 | D20: 2012 | E20: 01 | F20: NETHERLANDS | G20: 33856.12 | H20: 20896 | I20: 23310 | J20: 20896 | K20: KG | L20: AGROINDUSTRIAS SOLCACE SOCIEDAD ANONIMA CERRADA | M20: ROTTERDAM | N20: PALTAS FRESCAS | O20: EN CAJAS SE ACOGE AL DRAWBACK | Q20: 1.620220138
A21: 0804400000 | B21: AGUACATES (PALTAS), FRESCOS O SECOS. | C21: 20120201 | D21: 2012 | E21: 02 | F21: SPAIN | G21: 24851.582 | H21: 21340 | I21: 23840 | J21: 21340 | K21: KG | L21: AGROINDUSTRIAS SOLCACE SOCIEDAD ANONIMA CERRADA | M21: ALGECIRAS | N21: PALTAS FRESCAS | O21: EN CAJAS SE ACOGE AL DRAWBACK | Q21: 1.164553983
A22: 0804400000 | B22: AGUACATES (PALTAS), FRESCOS O SECOS. | C22: 20120201 | D22: 2012 | E22: 02 | F22: SWITZERLAND | G22: 11.4 | H22: 6.4 | I22: 7.081 | J22: 6.4 | K22: KG | L22: PRONATUR E.I.R.L. | M22: GENEVE | N22: PALTA FRESCAS | O22: RESTITUCION DE DERECHOS (DRAWBACK) D.S. 104-95 EF | Q22: 1.78125
A23: 0804400000 | B23: AGUACATES (PALTAS), FRESCOS O SECOS. | C23: 20120201 | D23: 2012 | E23: 02 | F23: SPAIN | G23: 34342.64 | H23: 21120 | I23: 22820 | J23: 21120 | K23: KG | L23: EUROFRESH PERU S.A.C | M23: ALGECIRAS | N23: PALTAS FRESCAS | O23: EN CAJAS SE ACOGE AL DRAWBACK | Q23: 1.62607197
A24: 0804400000 | B24: AGUACATES (PALTAS), FRESCOS O SECOS. | C24: 20120201 | D24: 2012 | E24: 02 | F24: NETHERLANDS | G24: 36749.83 | H24: 20620 | I24: 23020 | J24: 20620 | K24: KG | L24: AGROINDUSTRIAS SOLCACE SOCIEDAD ANONIMA CERRADA | M24: ROTTERDAM | N24: PALTAS FRESCAS | O24: EN CAJAS SE ACOGE AL DRAWBACK | Q24: 1.782241998
A25: 0804400000 | B25: AGUACATES (PALTAS), FRESCOS O SECOS. | C25: 20120201 | D25: 2012 | E25: 02 | F25: NETHERLANDS | G25: 18849.6 | H25: 17952 | I25: 20349 | J25: 17952 | K25: KG | L25: PROCESADORA TORRE BLANCA S.A. | M25: ROTTERDAM | N25: PALTA FUERTE | O25: FRESCA - EN CAJAS DRAWBACK | P25: fuerte | Q25: 1.05
A26: 0804400000 | B26: AGUACATES (PALTAS), FRESCOS O SECOS. | C26: 20120201 | D26: 2012 | E26: 02 | F26: NETHERLANDS | G26: 4118.4 | H26: 3168 | I26: 3591 | J26: 3168 | K26: KG | L26: PROCESADORA TORRE BLANCA S.A. | M26: ROTTERDAM | N26: PALTA HASS | O26: FRESCA - EN CAJAS DRAWBACK | P26: hass | Q26: 1.3
A27: 0804400000 | B27: AGUACATES (PALTAS), FRESCOS O SECOS. | C27: 20120202 | D27: 2012 | E27: 02 | F27: NETHERLANDS | G27: 10.52 | H27: 6.62 | I27: 7.358 | J27: 6.62 | K27: KG | L27: PRONATUR E.I.R.L. | M27: AMSTERDAM | N27: PALTA FRESCAS | O27: MUESTRAS SIN VALOR COMERCIAL | Q27: 1.589123867
A28: 0804400000 | B28: AGUACATES (PALTAS), FRESCOS O SECOS. | C28: 20120203 | D28: 2012 | E28: 02 | F28: NETHERLANDS | G28: 37640.951 | H28: 21120 | I28: 23260 | J28: 21120 | K28: KG | L28: KEMBLE PERU TRADING SAC | M28: ROTTERDAM | N28: PALTAS FRESCAS | O28: SE ACOGE AL DRAWBACK SEGUN D.S. 104-95 E.F. | Q28: 1.782241998
A29: 0804400000 | B29: AGUACATES (PALTAS), FRESCOS O SECOS. | C29: 20120203 | D29: 2012 | E29: 02 | F29: NETHERLANDS | G29: 27367.46 | H29: 21114 | I29: 23740 | J29: 21114 | K29: KG | L29: AGRICOLA AYACUCHO S.A. | M29: ROTTERDAM | N29: PALTA | O29: HASS FRESCA - EN CAJAS DRAWBACK | P29: hass | Q29: 1.296175997
A30: 0804400000 | B30: AGUACATES (PALTAS), FRESCOS O SECOS. | C30: 20120203 | D30: 2012 | E30: 02 | F30: NETHERLANDS | G30: 37640.951 | H30: 21120 | I30: 23280 | J30: 21120 | K30: KG | L30: KEMBLE PERU TRADING SAC | M30: ROTTERDAM | N30: PALTAS FRESCAS | O30: HASS SE ACOGE AL DRAWBACK SEGUN D.S. 104-95 E.F. | P30: hass | Q30: 1.782241998
A31: 0804400000 | B31: AGUACATES (PALTAS), FRESCOS O SECOS. | C31: 20120203 | D31: 2012 | E31: 02 | F31: NETHERLANDS | G31: 37640.951 | H31: 21120 | I31: 23220 | J31: 21120 | K31: KG | L31: KEMBLE PERU TRADING SAC | M31: ROTTERDAM | N31: PALTAS FRESCAS | O31: HASS SE ACOGE AL DRAWBACK SEGUN D.S. 104-95 E.F. | P31: hass | Q31: 1.782241998
A32: 0804400000 | B32: AGUACATES (PALTAS), FRESCOS O SECOS. | C32: 20120203 | D32: 2012 | E32: 02 | F32: NETHERLANDS | G32: 29531.037 | H32: 22064 | I32: 24090 | J32: 22064 | K32: KG | L32: AGROINDUSTRIAS VERDEFLOR S.A.C. | M32: ROTTERDAM | N32: PALTAS FRESCAS | O32: VARIEDAD: FUERTE, HASS SE ACOGE AL DRAWBACK SEGUN D.S. 104-95 E.F. | P32: hass/fuerte | Q32: 1.33842626
A33: 0804400000 | B33: AGUACATES (PALTAS), FRESCOS O SECOS. | C33: 20120204 | D33: 2012 | E33: 02 | F33: GERMANY | G33: 0.9 | H33: 2.415 | I33: 3.9 | J33: 2.415 | K33: KG | L33: DANPER TRUJILLO S.A.C. | M33: AMSTERDAM | N33: PALTA FRESCAS | O33: MUESTRAS SIN VALOR COMERCIAL | Q33: 0.3726708075
A34: 0804400000 | B34: AGUACATES (PALTAS), FRESCOS O SECOS. | C34: 20120207 | D34: 2012 | E34: 02 | F34: NETHERLANDS | G34: 37911.852 | H34: 21272 | I34: 23480 | J34: 21272 | K34: KG | L34: AGROINDUSTRIAS SOLCACE SOCIEDAD ANONIMA CERRADA | M34: ROTTERDAM | N34: PALTAS FRESCAS | O34: EN CAJAS SE ACOGE AL DRAWBACK | Q34: 1.782242008
A35: 0804400000 | B35: AGUACATES (PALTAS), FRESCOS O SECOS. | C35: 20120209 | D35: 2012 | E35: 02 | F35: NETHERLANDS | G35: 35179.843 | H35: 21516 | I35: 23830 | J35: 21516 | K35: KG | L35: AGROINDUSTRIAS SOLCACE SOCIEDAD ANONIMA CERRADA | M35: ROTTERDAM | N35: PALTAS FRESCAS | O35: EN CAJAS SE ACOGE AL DRAWBACK | Q35: 1.635054982
A36: 0804400000 | B36: AGUACATES (PALTAS), FRESCOS O SECOS. | C36: 20120209 | D36: 2012 | E36: 02 | F36: NETHERLANDS | G36: 35107.901 | H36: 21472 | I36: 23950 | J36: 21472 | K36: KG | L36: AGROINDUSTRIAS SOLCACE SOCIEDAD ANONIMA CERRADA | M36: ROTTERDAM | N36: PALTAS FRESCAS | O36: EN CAJAS SE ACOGE AL DRAWBACK | Q36: 1.635055002
A37: 0804400000 | B37: AGUACATES (PALTAS), FRESCOS O SECOS. | C37: 20120209 | D37: 2012 | E37: 02 | F37: UNITED KINGDOM | G37: 24979.68 | H37: 20064 | I37: 22515 | J37: 20064 | K37: KG | L37: PROCESADORA TORRE BLANCA S.A. | M37: TILBURY | N37: PALTA FUERTE | O37: FRESCA - EN CAJAS DRAWBACK | P37: fuerte | Q37: 1.245
A38: 0804400000 | B38: AGUACATES (PALTAS), FRESCOS O SECOS. | C38: 20120209 | D38: 2012 | E38: 02 | F38: UNITED KINGDOM | G38: 1372.8 | H38: 1056 | I38: 1185 | J38: 1056 | K38: KG | L38: PROCESADORA TORRE BLANCA S.A. | M38: TILBURY | N38: PALTA HASS | O38: FRESCA - EN CAJAS DRAWBACK | P38: hass | Q38: 1.3
A39: 0804400000 | B39: AGUACATES (PALTAS), FRESCOS O SECOS. | C39: 20120211 | D39: 2012 | E39: 02 | F39: NETHERLANDS | G39: 38697.828 | H39: 21516 | I39: 23850 | J39: 21516 | K39: KG | L39: AGROINDUSTRIAS SOLCACE SOCIEDAD ANONIMA CERRADA | M39: ROTTERDAM | N39: PALTAS FRESCAS | O39: EN CAJAS SE ACOGE AL DRAWBACK | Q39: 1.798560513
A40: 0804400000 | B40: AGUACATES (PALTAS), FRESCOS O SECOS. | C40: 20120211 | D40: 2012 | E40: 02 | F40: SPAIN | G40: 26244.595 | H40: 21120 | I40: 23820 | J40: 21120 | K40: KG | L40: AGROINDUSTRIAS SOLCACE SOCIEDAD ANONIMA CERRADA | M40: ALGECIRAS | N40: PALTAS FRESCAS | O40: EN CAJAS SE ACOGE AL DRAWBACK | Q40: 1.242641809
A41: 0804400000 | B41: AGUACATES (PALTAS), FRESCOS O SECOS. | C41: 20120211 | D41: 2012 | E41: 02 | F41: NETHERLANDS | G41: 27610.193 | H41: 21108 | I41: 23830 | J41: 21108 | K41: KG | L41: AGRICOLA AYACUCHO S.A. | M41: ROTTERDAM | N41: PALTA | O41: HASS FRESCA - EN CAJAS DRAWBACK | P41: hass | Q41: 1.308044012
A42: 0804400000 | B42: AGUACATES (PALTAS), FRESCOS O SECOS. | C42: 20120211 | D42: 2012 | E42: 02 | F42: NETHERLANDS | G42: 22100.711 | H42: 21120 | I42: 23240 | J42: 21120 | K42: KG | L42: AGROINDUSTRIAS VERDEFLOR S.A.C. | M42: ROTTERDAM | N42: PALTAS FRESCAS | O42: VARIEDAD: FUERTE SE ACOGE AL DRAWBACK SEGUN D.S. 104-95 E.F. | P42: fuerte | Q42: 1.04643518
A43: 0804400000 | B43: AGUACATES (PALTAS), FRESCOS O SECOS. | C43: 20120211 | D43: 2012 | E43: 02 | F43: NETHERLANDS | G43: 28526.87 | H43: 21588 | I43: 23510 | J43: 21588 | K43: KG | L43: AGROINDUSTRIAS VERDEFLOR S.A.C. | M43: ROTTERDAM | N43: PALTAS FRESCAS | O43: VARIEDAD: FUERTE, HASS SE ACOGE AL DRAWBACK SEGUN D.S. 104-95 E.F. | P43: hass/fuerte | Q43: 1.32142255
A44: 0804400000 | B44: AGUACATES (PALTAS), FRESCOS O SECOS. | C44: 20120215 | D44: 2012 | E44: 02 | F44: NETHERLANDS | G44: 23007.971 | H44: 21780 | I44: 23870 | J44: 21780 | K44: KG | L44: AGROINDUSTRIAS VERDEFLOR S.A.C. | M44: ROTTERDAM | N44: PALTAS FRESCAS | O44: VARIEDAD: FUERTE, HASS SE ACOGE AL DRAWBACK SEGUN D.S. 104-95 E.F. | P44: hass/fuerte | Q44: 1.05638067
A45: 0804400000 | B45: AGUACATES (PALTAS), FRESCOS O SECOS. | C45: 20120215 | D45: 2012 | E45: 02 | F45: NETHERLANDS | G45: 22100.711 | H45: 21296 | I45: 23630 | J45: 21296 | K45: KG | L45: AGROINDUSTRIAS VERDEFLOR S.A.C. | M45: ROTTERDAM | N45: PALTAS FRESCAS | O45: VARIEDAD: FUERTE, HASS SE ACOGE AL DRAWBACK SEGUN D.S. 104-95 E.F. | P45: hass/fuerte | Q45: 1.037786955
A46: 0804400000 | B46: AGUACATES (PALTAS), FRESCOS O SECOS. | C46: 20120215 | D46: 2012 | E46: 02 | F46: SPAIN | G46: 27625.889 | H46: 21120 | I46: 23870 | J46: 21120 | K46: KG | L46: AGROINDUSTRIAS SOLCACE SOCIEDAD ANONIMA CERRADA | M46: ALGECIRAS | N46: PALTAS FRESCAS | O46: EN CAJAS SE ACOGE AL DRAWBACK | Q46: 1.308043987
A47: 0804400000 | B47: AGUACATES (PALTAS), FRESCOS O SECOS. | C47: 20120215 | D47: 2012 | E47: 02 | F47: SPAIN | G47: 35596.2 | H47: 21120 | I47: 22860 | J47: 21120 | K47: KG | L47: EUROFRESH PERU S.A.C | M47: ALGECIRAS | N47: PALTA ORGANICA | O47: EN CAJAS DRAWBACK | Q47: 1.685426136
A48: 0804400000 | B48: AGUACATES (PALTAS), FRESCOS O SECOS. | C48: 20120215 | D48: 2012 | E48: 02 | F48: UNITED KINGDOM | G48: 24979.68 | H48: 20064 | I48: 22325 | J48: 20064 | K48: KG | L48: PROCESADORA TORRE BLANCA S.A. | M48: TILBURY | N48: PALTA FUERTE | O48: FRESCA - EN CAJAS DRAWBACK | P48: fuerte | Q48: 1.245
A49: 0804400000 | B49: AGUACATES (PALTAS), FRESCOS O SECOS. | C49: 20120215 | D49: 2012 | E49: 02 | F49: UNITED KINGDOM | G49: 1372.8 | H49: 1056 | I49: 1175 | J49: 1056 | K49: KG | L49: PROCESADORA TORRE BLANCA S.A. | M49: TILBURY | N49: PALTA HASS | O49: FRESCA - EN CAJAS DRAWBACK | P49: hass | Q49: 1.3
A50: 0804400000 | B50: AGUACATES (PALTAS), FRESCOS O SECOS. | C50: 20120215 | D50: 2012 | E50: 02 | F50: SPAIN | G50: 38949.626 | H50: 21428 | I50: 23860 | J50: 21428 | K50: KG | L50: AGROINDUSTRIAS SOLCACE SOCIEDAD ANONIMA CERRADA | M50: ALGECIRAS | N50: PALTAS FRESCAS | O50: EN CAJAS SE ACOGE AL DRAWBACK | Q50: 1.817697685
A51: 0804400000 | B51: AGUACATES (PALTAS), FRESCOS O SECOS. | C51: 20120217 | D51: 2012 | E51: 02 | F51: NETHERLANDS | G51: 45408 | H51: 21120 | I51: 23460 | J51: 21120 | K51: KG | L51: AGRICOLA CERRO PRIETO S.A.C. | M51: ROTTERDAM | N51: PALTAS FRESCAS | O51: EN CAJAS CONSUMO HUMANO DRAWBACK | Q51: 2.15
A52: 0804400000 | B52: AGUACATES (PALTAS), FRESCOS O SECOS. | C52: 20120217 | D52: 2012 | E52: 02 | F52: NETHERLANDS | G52: 45408 | H52: 21120 | I52: 23520 | J52: 21120 | K52: KG | L52: AGRICOLA CERRO PRIETO S.A.C. | M52: ROTTERDAM | N52: PALTAS FRESCAS | O52: EN CAJAS CONSUMO HUMANO DRAWBACK | Q52: 2.15
A53: 0804400000 | B53: AGUACATES (PALTAS), FRESCOS O SECOS. | C53: 20120218 | D53: 2012 | E53: 02 | F53: NETHERLANDS | G53: 27574.091 | H53: 22252 | I53: 23340 | J53: 22252 | K53: KG | L53: AGROINDUSTRIAS VERDEFLOR S.A.C. | M53: ROTTERDAM | N53: PALTAS FRESCAS | O53: VARIEDAD: FUERTE, HASS SE ACOGE AL DRAWBACK SEGUN D.S. 104-95 E.F. | P53: hass/fuerte | Q53: 1.239173602
A54: 0804400000 | B54: AGUACATES (PALTAS), FRESCOS O SECOS. | C54: 20120218 | D54: 2012 | E54: 02 | F54: NETHERLANDS | G54: 32524.8 | H54: 21120 | I54: 23770 | J54: 21120 | K54: KG | L54: AGRICOLA AYACUCHO S.A. | M54: ROTTERDAM | N54: PALTA FUERTE | O54: FRESCA - EN CAJAS DRAWBACK | P54: fuerte | Q54: 1.54
A55: 0804400000 | B55: AGUACATES (PALTAS), FRESCOS O SECOS. | C55: 20120218 | D55: 2012 | E55: 02 | F55: NETHERLANDS | G55: 32524.8 | H55: 21120 | I55: 23530 | J55: 21120 | K55: KG | L55: AGRICOLA AYACUCHO S.A. | M55: ROTTERDAM | N55: PALTA FUERTE | O55: FRESCA - EN CAJAS DRAWBACK | P55: fuerte | Q55: 1.54
A56: 0804400000 | B56: AGUACATES (PALTAS), FRESCOS O SECOS. | C56: 20120218 | D56: 2012 | E56: 02 | F56: NETHERLANDS | G56: 34964.016 | H56: 21384 | I56: 24240 | J56: 21384 | K56: KG | L56: AGROINDUSTRIAS SOLCACE SOCIEDAD ANONIMA CERRADA | M56: ROTTERDAM | N56: PALTAS FRESCAS | O56: EN CAJAS SE ACOGE AL DRAWBACK | Q56: 1.635054994
A57: 0804400000 | B57: AGUACATES (PALTAS), FRESCOS O SECOS. | C57: 20120218 | D57: 2012 | E57: 02 | F57: NETHERLANDS | G57: 42367.62 | H57: 21120 | I57: 23650 | J57: 21120 | K57: KG | L57: PRODUCTOS DEL VALLE S.A.C. | M57: ROTTERDAM | N57: PALTA FRESCA | O57: VARIEDAD: HASS, FUERTE NOS ACOGEMOS AL DRAWBACK SEGUN DS 104-95 EF | P57: hass/fuerte | Q57: 2.006042614
A58: 0804400000 | B58: AGUACATES (PALTAS), FRESCOS O SECOS. | C58: 20120218 | D58: 2012 | E58: 02 | F58: UNITED KINGDOM | G58: 41184 | H58: 21120 | I58: 23780 | J58: 21120 | K58: KG | L58: PRODUCTOS DEL VALLE S.A.C. | M58: TILBURY | N58: PALTA FRESCA | O58: VARIEDAD: FUERTE NOS ACOGEMOS AL DRAWBACK SEGUN DS 104-95 EF | P58: fuerte | Q58: 1.95
A59: 0804400000 | B59: AGUACATES (PALTAS), FRESCOS O SECOS. | C59: 20120218 | D59: 2012 | E59: 02 | F59: NETHERLANDS | G59: 45408 | H59: 21120 | I59: 23940 | J59: 21120 | K59: KG | L59: AGRICOLA AYACUCHO S.A. | M59: ROTTERDAM | N59: PALTA | O59: HASS FRESCA - EN CAJAS DRAWBACK | P59: hass | Q59: 2.15
A60: 0804400000 | B60: AGUACATES (PALTAS), FRESCOS O SECOS. | C60: 20120218 | D60: 2012 | E60: 02 | F60: NETHERLANDS | G60: 5742 | H60: 3168 | I60: 4414.165 | J60: 3168 | K60: KG | L60: FCE EXPORT FRUIT S.A.C | M60: ROTTERDAM | N60: PALTAS FRESCAS | O60: VARIEDAD HASS DRAWBACK | P60: hass | Q60: 1.8125
A61: 0804400000 | B61: AGUACATES (PALTAS), FRESCOS O SECOS. | C61: 20120218 | D61: 2012 | E61: 02 | F61: NETHERLANDS | G61: 24684 | H61: 17952 | I61: 18975.835 | J61: 17952 | K61: KG | L61: FCE EXPORT FRUIT S.A.C | M61: ROTTERDAM | N61: PALTAS FRESCAS | O61: VARIEDAD FUERTE DRAWBACK | P61: fuerte | Q61: 1.375
A62: 0804400000 | B62: AGUACATES (PALTAS), FRESCOS O SECOS. | C62: 20120218 | D62: 2012 | E62: 02 | F62: NETHERLANDS | G62: 3828 | H62: 2112 | I62: 3002.203 | J62: 2112 | K62: KG | L62: FCE EXPORT FRUIT S.A.C | M62: ROTTERDAM | N62: PALTAS FRESCAS | O62: VARIEDAD HASS DRAWBACK | P62: hass | Q62: 1.8125
A63: 0804400000 | B63: AGUACATES (PALTAS), FRESCOS O SECOS. | C63: 20120218 | D63: 2012 | E63: 02 | F63: NETHERLANDS | G63: 26136 | H63: 19008 | I63: 20497.797 | J63: 19008 | K63: KG | L63: FCE EXPORT FRUIT S.A.C | M63: ROTTERDAM | N63: PALTAS FRESCAS | O63: VARIEDAD FUERTE DRAWBACK | P63: fuerte | Q63: 1.375
A64: 0804400000 | B64: AGUACATES (PALTAS), FRESCOS O SECOS. | C64: 20120218 | D64: 2012 | E64: 02 | F64: NETHERLANDS | G64: 22100.711 | H64: 21120 | I64: 23260 | J64: 21120 | K64: KG | L64: AGROINDUSTRIAS VERDEFLOR S.A.C. | M64: ROTTERDAM | N64: PALTAS FRESCAS | O64: VARIEDAD: FUERTE SE ACOGE AL DRAWBACK SEGUN D.S. 104-95 E.F. | P64: fuerte | Q64: 1.04643518
A65: 0804400000 | B65: AGUACATES (PALTAS), FRESCOS O SECOS. | C65: 20120220 | D65: 2012 | E65: 02 | F65: SPAIN | G65: 45408 | H65: 21120 | I65: 23570 | J65: 21120 | K65: KG | L65: AGRICOLA CERRO PRIETO S.A.C. | M65: ALGECIRAS | N65: PALTA | O65: RESTITUCION DE DERECHOS ARANCELARIOS D.S. 104-95 EF | Q65: 2.15
A66: 0804400000 | B66: AGUACATES (PALTAS), FRESCOS O SECOS. | C66: 20120221 | D66: 2012 | E66: 02 | F66: NETHERLANDS | G66: 29040 | H66: 21120 | I66: 23460 | J66: 21120 | K66: KG | L66: FCE EXPORT FRUIT S.A.C | M66: ROTTERDAM | N66: PALTA VARIEDAD FUERTE | O66: DRAWBACK | P66: fuerte | Q66: 1.375
A67: 0804400000 | B67: AGUACATES (PALTAS), FRESCOS O SECOS. | C67: 20120221 | D67: =LEFT(C67,4) -> 2012 | E67: =MIDB(C67,5,2) -> 02 | F67: NETHERLANDS | G67: 29818.694 | H67: 21164 | I67: 23130 | J67: 21164 | K67: KG | L67: AGROINDUSTRIAS VERDEFLOR S.A.C. | M67: ROTTERDAM | N67: PALTAS FRESCAS | O67: VARIEDAD: FUERTE, HASS SE ACOGE AL DRAWBACK SEGUN D.S. 104-95 E.F. | P67: hass/fuerte | Q67: =G67/H67 -> 1.4089347
A68: 0804400000 | B68: AGUACATES (PALTAS), FRESCOS O SECOS. | C68: 20120221 | D68: 2012 | E68: 02 | F68: NETHERLANDS | G68: 24172.653 | H68: 21120 | I68: 23170 | J68: 21120 | K68: KG | L68: AGROINDUSTRIAS VERDEFLOR S.A.C. | M68: ROTTERDAM | N68: PALTAS FRESCAS | O68: VARIEDAD: FUERTE, HASS SE ACOGE AL DRAWBACK SEGUN D.S. 104-95 E.F. | P68: hass/fuerte | Q68: 1.144538494
A69: 0804400000 | B69: AGUACATES (PALTAS), FRESCOS O SECOS. | C69: 20120222 | D69: 2012 | E69: 02 | F69: UNITED KINGDOM | G69: 27456 | H69: 21120 | I69: 23730 | J69: 21120 | K69: KG | L69: PROCESADORA TORRE BLANCA S.A. | M69: TILBURY | N69: PALTA FUERTE | O69: FRESCA - EN CAJAS DRAWBACK | P69: fuerte | Q69: 1.3
A70: 0804400000 | B70: AGUACATES (PALTAS), FRESCOS O SECOS. | C70: 20120222 | D70: 2012 | E70: 02 | F70: SPAIN | G70: 33116.535 | H70: 21516 | I70: 23890 | J70: 21516 | K70: KG | L70: AGROINDUSTRIAS SOLCACE SOCIEDAD ANONIMA CERRADA | M70: ALGECIRAS | N70: PALTAS FRESCAS | O70: EN CAJAS SE ACOGE AL DRAWBACK | Q70: 1.539158533
A71: 0804400000 | B71: AGUACATES (PALTAS), FRESCOS O SECOS. | C71: 20120222 | D71: 2012 | E71: 02 | F71: SPAIN | G71: 27073.371 | H71: 21120 | I71: 23590 | J71: 21120 | K71: KG | L71: AGROINDUSTRIAS SOLCACE SOCIEDAD ANONIMA CERRADA | M71: ALGECIRAS | N71: PALTAS FRESCAS | O71: EN CAJAS SE ACOGE AL DRAWBACK | Q71: 1.281883097
A72: 0804400000 | B72: AGUACATES (PALTAS), FRESCOS O SECOS. | C72: 20120222 | D72: 2012 | E72: 02 | F72: SPAIN | G72: 37107.4 | H72: 21120 | I72: 22680 | J72: 21120 | K72: KG | L72: EUROFRESH PERU S.A.C | M72: ALGECIRAS | N72: PALTA ORGANICA | O72: EN CAJAS DRAWBACK | Q72: 1.756979167
A73: 0804400000 | B73: AGUACATES (PALTAS), FRESCOS O SECOS. | C73: 20120222 | D73: 2012 | E73: 02 | F73: SPAIN | G73: 36577.2 | H73: 21120 | I73: 22580 | J73: 21120 | K73: KG | L73: EUROFRESH PERU S.A.C | M73: ALGECIRAS | N73: PALTA ORGANICA | O73: EN CAJAS DRAWBACK | Q73: 1.731875
A74: 0804400000 | B74: AGUACATES (PALTAS), FRESCOS O SECOS. | C74: 20120225 | D74: 2012 | E74: 02 | F74: NETHERLANDS | G74: 41438.834 | H74: 21120 | I74: 23890 | J74: 21120 | K74: KG | L74: AGROINDUSTRIAS SOLCACE SOCIEDAD ANONIMA CERRADA | M74: ROTTERDAM | N74: PALTAS FRESCAS | O74: EN CAJAS SE ACOGE AL DRAWBACK | Q74: 1.962066004
A75: 0804400000 | B75: AGUACATES (PALTAS), FRESCOS O SECOS. | C75: 20120225 | D75: 2012 | E75: 02 | F75: NETHERLANDS | G75: 28920.853 | H75: 21340 | I75: 23090 | J75: 21340 | K75: KG | L75: AGROINDUSTRIAS VERDEFLOR S.A.C. | M75: ROTTERDAM | N75: PALTAS FRESCAS | O75: VARIEDAD: FUERTE, HASS SE ACOGE AL DRAWBACK SEGUN D.S. 104-95 E.F. | P75: hass/fuerte | Q75: 1.355241471
A76: 0804400000 | B76: AGUACATES (PALTAS), FRESCOS O SECOS. | C76: 20120225 | D76: 2012 | E76: 02 | F76: NETHERLANDS | G76: 45408 | H76: 21120 | I76: 23720 | J76: 21120 | K76: KG | L76: AGRICOLA AYACUCHO S.A. | M76: ROTTERDAM | N76: PALTA | O76: HASS FRESCA - EN CAJAS DRAWBACK | P76: hass | Q76: 2.15
A77: 0804400000 | B77: AGUACATES (PALTAS), FRESCOS O SECOS. | C77: 20120225 | D77: 2012 | E77: 02 | F77: NETHERLANDS | G77: 32524.8 | H77: 21120 | I77: 23710 | J77: 21120 | K77: KG | L77: AGRICOLA AYACUCHO S.A. | M77: ROTTERDAM | N77: PALTA FUERTE | O77: FRESCA - EN CAJAS DRAWBACK | P77: fuerte | Q77: 1.54
A78: 0804400000 | B78: AGUACATES (PALTAS), FRESCOS O SECOS. | C78: 20120225 | D78: 2012 | E78: 02 | F78: NETHERLANDS | G78: 45408 | H78: 21120 | I78: 23760 | J78: 21120 | K78: KG | L78: AGRICOLA AYACUCHO S.A. | M78: ROTTERDAM | N78: PALTA HASS | O78: FRESCA - EN CAJAS DRAWBACK | P78: hass | Q78: 2.15
A79: 0804400000 | B79: AGUACATES (PALTAS), FRESCOS O SECOS. | C79: 20120225 | D79: 2012 | E79: 02 | F79: NETHERLANDS | G79: 23136.682 | H79: 21120 | I79: 23210 | J79: 21120 | K79: KG | L79: AGROINDUSTRIAS VERDEFLOR S.A.C. | M79: ROTTERDAM | N79: PALTAS FRESCAS | O79: VARIEDAD: FUERTE SE ACOGE AL DRAWBACK SEGUN D.S. 104-95 E.F. | P79: fuerte | Q79: 1.095486837
A80: 0804400000 | B80: AGUACATES (PALTAS), FRESCOS O SECOS. | C80: 20120225 | D80: 2012 | E80: 02 | F80: NETHERLANDS | G80: 41499.12 | H80: 21120 | I80: 23660 | J80: 21120 | K80: KG | L80: PRODUCTOS DEL VALLE S.A.C. | M80: ROTTERDAM | N80: PALTA FRESCA | O80: VARIEDAD: HASS, FUERTE NOS ACOGEMOS AL DRAWBACK SEGUN DS 104-95 EF | P80: hass/fuerte | Q80: 1.964920455
A81: 0804400000 | B81: AGUACATES (PALTAS), FRESCOS O SECOS. | C81: 20120225 | D81: 2012 | E81: 02 | F81: NETHERLANDS | G81: 32524.8 | H81: 21120 | I81: 23660 | J81: 21120 | K81: KG | L81: AGRICOLA AYACUCHO S.A. | M81: ROTTERDAM | N81: PALTA FUERTE | O81: FRESCA - EN CAJAS DRAWBACK | P81: fuerte | Q81: 1.54
A82: 0804400000 | B82: AGUACATES (PALTAS), FRESCOS O SECOS. | C82: 20120225 | D82: 2012 | E82: 02 | F82: UNITED KINGDOM | G82: 33619.2 | H82: 19776 | I82: 21720 | J82: 19776 | K82: KG | L82: GLOBAL FRESH S.A.C. | M82: TILBURY | N82: PALTAS FRESCAS | O82: EN CAJAS SE ACOGE AL DRAWBACK | Q82: 1.7
A83: 0804400000 | B83: AGUACATES (PALTAS), FRESCOS O SECOS. | C83: 20120225 | D83: 2012 | E83: 02 | F83: NETHERLANDS | G83: 27588 | H83: 20064 | I83: 21956.689 | J83: 20064 | K83: KG | L83: FCE EXPORT FRUIT S.A.C | M83: ROTTERDAM | N83: PALTAS FRESCAS | O83: VARIEDAD FUERTE DRAWBACK | P83: fuerte | Q83: 1.375
A84: 0804400000 | B84: AGUACATES (PALTAS), FRESCOS O SECOS. | C84: 20120225 | D84: 2012 | E84: 02 | F84: NETHERLANDS | G84: 1914 | H84: 1056 | I84: 1523.311 | J84: 1056 | K84: KG | L84: FCE EXPORT FRUIT S.A.C | M84: ROTTERDAM | N84: PALTAS FRESCAS | O84: VARIEDAD HASS DRAWBACK | P84: hass | Q84: 1.8125
A85: 0804400000 | B85: AGUACATES (PALTAS), FRESCOS O SECOS. | C85: 20120228 | D85: 2012 | E85: 02 | F85: NETHERLANDS | G85: 35343.872 | H85: 21252 | I85: 23240 | J85: 21252 | K85: KG | L85: AGROINDUSTRIAS VERDEFLOR S.A.C. | M85: ROTTERDAM | N85: PALTAS FRESCAS | O85: VARIEDAD: HASS SE ACOGE AL DRAWBACK SEGUN D.S. 104-95 E.F. | P85: hass | Q85: 1.66308451
A86: 0804400000 | B86: AGUACATES (PALTAS), FRESCOS O SECOS. | C86: 20120228 | D86: 2012 | E86: 02 | F86: NETHERLANDS | G86: 25519.415 | H86: 21208 | I86: 23220 | J86: 21208 | K86: KG | L86: AGROINDUSTRIAS VERDEFLOR S.A.C. | M86: ROTTERDAM | N86: PALTAS FRESCAS | O86: VARIEDAD: FUERTE, HASS SE ACOGE AL DRAWBACK SEGUN D.S. 104-95 E.F. | P86: hass/fuerte | Q86: 1.203291918
A87: 0804400000 | B87: AGUACATES (PALTAS), FRESCOS O SECOS. | C87: 20120228 | D87: 2012 | E87: 02 | F87: NETHERLANDS | G87: 37985.597 | H87: 21120 | I87: 23220 | J87: 21120 | K87: KG | L87: AGROINDUSTRIAS VERDEFLOR S.A.C. | M87: ROTTERDAM | N87: PALTAS FRESCAS | O87: VARIEDAD: FUERTE / HASS SE ACOGE AL DRAWBACK SEGUN D.S. 104-95 E.F. | P87: hass/fuerte | Q87: 1.798560464
A88: 0804400000 | B88: AGUACATES (PALTAS), FRESCOS O SECOS. | C88: 20120228 | D88: 2012 | E88: 02 | F88: FRANCE | G88: 19365.8 | H88: 21120 | I88: 23020 | J88: 21120 | K88: KG | L88: AGRICOLA DON TOMAS SOCIEDAD ANONIMA CE | M88: ROTTERDAM | N88: PALTA FUERTE FRESCA | O88: VARIEDAD HASS EN CAJAS A GRANEL PARA CONSUMO HUMANO, S/M SE ACOGE AL REGIMEN DE RESTITUCION DE DERECHOS ARANCELARIOS (D.S. 104-95-EF) | P88: hass/fuerte | Q88: 0.9169412879
A89: 0804400000 | B89: AGUACATES (PALTAS), FRESCOS O SECOS. | C89: 20120229 | D89: 2012 | E89: 02 | F89: SPAIN | G89: 33795.671 | H89: 21428 | I89: 23840 | J89: 21428 | K89: KG | L89: AGROINDUSTRIAS SOLCACE SOCIEDAD ANONIMA CERRADA | M89: ALGECIRAS | N89: PALTAS FRESCAS | O89: EN CAJAS SE ACOGE AL DRAWBACK | Q89: 1.577173371
A90: 0804400000 | B90: AGUACATES (PALTAS), FRESCOS O SECOS. | C90: 20120229 | D90: 2012 | E90: 02 | F90: SPAIN | G90: 36604.303 | H90: 21252 | I90: 23900 | J90: 21252 | K90: KG | L90: AGROINDUSTRIAS SOLCACE SOCIEDAD ANONIMA CERRADA | M90: ALGECIRAS | N90: PALTAS FRESCAS | O90: EN CAJAS SE ACOGE AL DRAWBACK | Q90: 1.722393328
A91: 0804400000 | B91: AGUACATES (PALTAS), FRESCOS O SECOS. | C91: 20120229 | D91: 2012 | E91: 02 | F91: SPAIN | G91: 35879.124 | H91: 21252 | I91: 23950 | J91: 21252 | K91: KG | L91: AGROINDUSTRIAS SOLCACE SOCIEDAD ANONIMA CERRADA | M91: ALGECIRAS | N91: PALTAS FRESCAS | O91: EN CAJAS SE ACOGE AL DRAWBACK | Q91: 1.688270469
A92: 0804400000 | B92: AGUACATES (PALTAS), FRESCOS O SECOS. | C92: 20120229 | D92: 2012 | E92: 02 | F92: SPAIN | G92: 35660.419 | H92: 21296 | I92: 23860 | J92: 21296 | K92: KG | L92: AGROINDUSTRIAS SOLCACE SOCIEDAD ANONIMA CERRADA | M92: ALGECIRAS | N92: PALTAS FRESCAS | O92: EN CAJAS SE ACOGE AL DRAWBACK | Q92: 1.674512538
A93: 0804400000 | B93: AGUACATES (PALTAS), FRESCOS O SECOS. | C93: 20120229 | D93: 2012 | E93: 02 | F93: SPAIN | G93: 35496.39 | H93: 21116 | I93: 23720 | J93: 21116 | K93: KG | L93: AGROINDUSTRIAS SOLCACE SOCIEDAD ANONIMA CERRADA | M93: ALGECIRAS | N93: PALTAS FRESCAS | O93: EN CAJAS SE ACOGE AL DRAWBACK | Q93: 1.681018659
A94: 0804400000 | B94: AGUACATES (PALTAS), FRESCOS O SECOS. | C94: 20120229 | D94: 2012 | E94: 02 | F94: SPAIN | G94: 34882.9 | H94: 21190 | I94: 22650 | J94: 21190 | K94: KG | L94: EUROFRESH PERU S.A.C | M94: ALGECIRAS | N94: PALTA ORGANICA | O94: EN CAJAS DRAWBACK | Q94: 1.646196319
A95: 0804400000 | B95: AGUACATES (PALTAS), FRESCOS O SECOS. | C95: 20120229 | D95: 2012 | E95: 02 | F95: SPAIN | G95: 45408 | H95: 21120 | I95: 23720 | J95: 21120 | K95: KG | L95: AGRICOLA AYACUCHO S.A. | M95: ALGECIRAS | N95: PALTA HASS | O95: FRESCA - EN CAJAS DRAWBACK | P95: hass | Q95: 2.15
A96: 0804400000 | B96: AGUACATES (PALTAS), FRESCOS O SECOS. | C96: 20120229 | D96: 2012 | E96: 02 | F96: UNITED KINGDOM | G96: 27456 | H96: 21120 | I96: 23880 | J96: 21120 | K96: KG | L96: PROCESADORA TORRE BLANCA S.A. | M96: TILBURY | N96: PALTA FUERTE | O96: FRESCA - EN CAJAS DRAWBACK | P96: fuerte | Q96: 1.3
A97: 0804400000 | B97: AGUACATES (PALTAS), FRESCOS O SECOS. | C97: 20120303 | D97: 2012 | E97: 03 | F97: NETHERLANDS | G97: 20305.028 | H97: 21120 | I97: 23110 | J97: 21120 | K97: KG | L97: AGROINDUSTRIAS VERDEFLOR S.A.C. | M97: ROTTERDAM | N97: PALTAS FRESCAS | O97: VARIEDAD: FUERTE SE ACOGE AL DRAWBACK SEGUN D.S. 104-95 E.F. | P97: fuerte | Q97: 0.9614123106
A98: 0804400000 | B98: AGUACATES (PALTAS), FRESCOS O SECOS. | C98: 20120303 | D98: 2012 | E98: 03 | F98: NETHERLANDS | G98: 23654.667 | H98: 21120 | I98: 23180 | J98: 21120 | K98: KG | L98: AGROINDUSTRIAS VERDEFLOR S.A.C. | M98: ROTTERDAM | N98: PALTAS FRESCAS | O98: VARIEDAD: FUERTE SE ACOGE AL DRAWBACK SEGUN D.S. 104-95 E.F. | P98: fuerte | Q98: 1.120012642
A99: 0804400000 | B99: AGUACATES (PALTAS), FRESCOS O SECOS. | C99: 20120303 | D99: 2012 | E99: 03 | F99: NETHERLANDS | G99: 45408 | H99: 21120 | I99: 23720 | J99: 21120 | K99: KG | L99: AGRICOLA AYACUCHO S.A. | M99: ROTTERDAM | N99: PALTA HASS | O99: FRESCA - EN CAJAS DRAWBACK | P99: hass | Q99: 2.15
A100: 0804400000 | B100: AGUACATES (PALTAS), FRESCOS O SECOS. | C100: 20120303 | D100: 2012 | E100: 03 | F100: NETHERLANDS | G100: 46464 | H100: 21120 | I100: 23850 | J100: 21120 | K100: KG | L100: AGRICOLA AYACUCHO S.A. | M100: ROTTERDAM | N100: PALTA HASS | O100: FRESCA - EN CAJAS DRAWBACK | P100: hass | Q100: 2.2
A101: 0804400000 | B101: AGUACATES (PALTAS), FRESCOS O SECOS. | C101: 20120303 | D101: 2012 | E101: 03 | F101: NETHERLANDS | G101: 45017.4 | H101: 21108 | I101: 23680 | J101: 21108 | K101: KG | L101: AGRICOLA AYACUCHO S.A. | M101: ROTTERDAM | N101: PALTA HASS | O101: FRESCA - EN CAJAS DRAWBACK | P101: hass | Q101: 2.132717453
A102: 0804400000 | B102: AGUACATES (PALTAS), FRESCOS O SECOS. | C102: 20120303 | D102: 2012 | E102: 03 | F102: UNITED KINGDOM | G102: 45408 | H102: 21120 | I102: 23820 | J102: 21120 | K102: KG | L102: AGRICOLA AYACUCHO S.A. | M102: TILBURY | N102: PALTA HASS | O102: FRESCA - EN CAJAS DRAWBACK | P102: hass | Q102: 2.15
A103: 0804400000 | B103: AGUACATES (PALTAS), FRESCOS O SECOS. | C103: 20120303 | D103: 2012 | E103: 03 | F103: NETHERLANDS | G103: 32524.8 | H103: 21120 | I103: 23540 | J103: 21120 | K103: KG | L103: AGRICOLA AYACUCHO S.A. | M103: ROTTERDAM | N103: PALTA FUERTE | O103: FRESCA - EN CAJAS DRAWBACK | P103: fuerte | Q103: 1.54
A104: 0804400000 | B104: AGUACATES (PALTAS), FRESCOS O SECOS. | C104: 20120303 | D104: 2012 | E104: 03 | F104: NETHERLANDS | G104: 45408 | H104: 21120 | I104: 23760 | J104: 21120 | K104: KG | L104: AGRICOLA AYACUCHO S.A. | M104: ROTTERDAM | N104: PALTA HASS | O104: FRESCA - EN CAJAS DRAWBACK | P104: hass | Q104: 2.15
A105: 0804400000 | B105: AGUACATES (PALTAS), FRESCOS O SECOS. | C105: 20120303 | D105: 2012 | E105: 03 | F105: NETHERLANDS | G105: 27683.443 | H105: 21164 | I105: 23860 | J105: 21164 | K105: KG | L105: AGRICOLA AYACUCHO S.A. | M105: ROTTERDAM | N105: PALTA HASS | O105: FRESCA - EN CAJAS DRAWBACK | P105: hass | Q105: 1.30804399
A106: 0804400000 | B106: AGUACATES (PALTAS), FRESCOS O SECOS. | C106: 20120303 | D106: 2012 | E106: 03 | F106: NETHERLANDS | G106: 41598 | H106: 21120 | I106: 23760 | J106: 21120 | K106: KG | L106: AGRONEGOCIOS LA GRAMA S.A.C. | M106: ROTTERDAM | N106: PALTA FRESCA | O106: NOS ACOGEMOS AL DRAWBACK SEGUN DS 104-95 EF | Q106: 1.969602273
A107: 0804400000 | B107: AGUACATES (PALTAS), FRESCOS O SECOS. | C107: 20120303 | D107: 2012 | E107: 03 | F107: NETHERLANDS | G107: 48345.306 | H107: 21120 | I107: 23180 | J107: 21120 | K107: KG | L107: KEMBLE PERU TRADING SAC | M107: ROTTERDAM | N107: PALTA FRESCA | O107: NOS ACOGEMOS AL DRAWBACK SEGUN DS 104-95 EF | Q107: 2.289076989
A108: 0804400000 | B108: AGUACATES (PALTAS), FRESCOS O SECOS. | C108: 20120303 | D108: 2012 | E108: 03 | F108: NETHERLANDS | G108: 48345.306 | H108: 21120 | I108: 23080 | J108: 21120 | K108: KG | L108: KEMBLE PERU TRADING SAC | M108: ROTTERDAM | N108: PALTA FRESCA | O108: VARIEDAD: HASS, FUERTE NOS ACOGEMOS AL DRAWBACK SEGUN DS 104-95 EF | P108: hass/fuerte | Q108: 2.289076989
A109: 0804400000 | B109: AGUACATES (PALTAS), FRESCOS O SECOS. | C109: 20120303 | D109: 2012 | E109: 03 | F109: NETHERLANDS | G109: 43798.545 | H109: 21120 | I109: 23280 | J109: 21120 | K109: KG | L109: KEMBLE PERU TRADING SAC | M109: ROTTERDAM | N109: PALTA FRESCA | O109: VARIEDAD: HASS, FUERTE NOS ACOGEMOS AL DRAWBACK SEGUN DS 104-95 EF | P109: hass/fuerte | Q109: 2.073794744
A110: 0804400000 | B110: AGUACATES (PALTAS), FRESCOS O SECOS. | C110: 20120303 | D110: 2012 | E110: 03 | F110: NETHERLANDS | G110: 29040 | H110: 21120 | I110: 23380 | J110: 21120 | K110: KG | L110: FCE EXPORT FRUIT S.A.C | M110: ROTTERDAM | N110: PALTA FRESCA | O110: VARIEDAD FUERTE DRAWBACK | P110: fuerte | Q110: 1.375
A111: 0804400000 | B111: AGUACATES (PALTAS), FRESCOS O SECOS. | C111: 20120303 | D111: 2012 | E111: 03 | F111: NETHERLANDS | G111: 28920.852 | H111: 21340 | I111: 23190 | J111: 21340 | K111: KG | L111: AGROINDUSTRIAS VERDEFLOR S.A.C. | M111: ROTTERDAM | N111: PALTAS FRESCAS | O111: VARIEDAD: FUERTE, HASS SE ACOGE AL DRAWBACK SEGUN D.S. 104-95 E.F. | P111: hass/fuerte | Q111: 1.355241425
A112: 0804400000 | B112: AGUACATES (PALTAS), FRESCOS O SECOS. | C112: 20120303 | D112: 2012 | E112: 03 | F112: NETHERLANDS | G112: 27588 | H112: 20064 | I112: 22040.85 | J112: 20064 | K112: KG | L112: FCE EXPORT FRUIT S.A.C | M112: ROTTERDAM | N112: PALTA FRESCA | O112: VARIEDAD FUERTE DRAWBACK | P112: fuerte | Q112: 1.375
A113: 0804400000 | B113: AGUACATES (PALTAS), FRESCOS O SECOS. | C113: 20120303 | D113: 2012 | E113: 03 | F113: NETHERLANDS | G113: 1914 | H113: 1056 | I113: 1529.15 | J113: 1056 | K113: KG | L113: FCE EXPORT FRUIT S.A.C | M113: ROTTERDAM | N113: PALTA FRESCA VARIEDAD HASS | O113: DRAWBACK | P113: hass | Q113: 1.8125
A114: 0804400000 | B114: AGUACATES (PALTAS), FRESCOS O SECOS. | C114: 20120304 | D114: 2012 | E114: 03 | F114: RUSSIAN FEDERATION | G114: 24288 | H114: 21120 | I114: 23090 | J114: 21120 | K114: KG | L114: AGROINDUSTRIAS VERDEFLOR S.A.C. | M114: ST PETERSBURG (EX LENINGRAD) | N114: PALTAS FRESCAS | O114: VARIEDAD: FUERTE SE ACOGE AL DRAWBACK SEGUN D.S. 104-95 E.F. | P114: fuerte | Q114: 1.15
A115: 0804400000 | B115: AGUACATES (PALTAS), FRESCOS O SECOS. | C115: 20120305 | D115: 2012 | E115: 03 | F115: CANADA | G115: 1435.2 | H115: 1196 | I115: 1259.05 | J115: 1196 | K115: KG | L115: TROPICAL HARVEST S.A.C. | M115: TORONTO APT | N115: PALTA | Q115: 1.2
A116: 0804400000 | B116: AGUACATES (PALTAS), FRESCOS O SECOS. | C116: 20120306 | D116: 2012 | E116: 03 | F116: CHILE | G116: 5867 | H116: 13260 | I116: 13920 | J116: 13260 | K116: KG | L116: YUGRA SOSA MARIO MARTIN | M116: ARICA | N116: PALTA FRESCA | O116: EN CAJAS DE CARTON C/U POR 13 KG. NETOS PARA CONSUMO HUMANO | Q116: 0.4424585219
A117: 0804400000 | B117: AGUACATES (PALTAS), FRESCOS O SECOS. | C117: 20120306 | D117: 2012 | E117: 03 | F117: NETHERLANDS | G117: 34359.699 | H117: 21208 | I117: 23160 | J117: 21208 | K117: KG | L117: AGROINDUSTRIAS VERDEFLOR S.A.C. | M117: ROTTERDAM | N117: PALTAS FRESCAS | O117: VARIEDAD: HASS SE ACOGE AL DRAWBACK SEGUN D.S. 104-95 E.F. | P117: hass | Q117: 1.620129149
A118: 0804400000 | B118: AGUACATES (PALTAS), FRESCOS O SECOS. | C118: 20120306 | D118: 2012 | E118: 03 | F118: NETHERLANDS | G118: 36776.965 | H118: 21208 | I118: 23240 | J118: 21208 | K118: KG | L118: AGROINDUSTRIAS VERDEFLOR S.A.C. | M118: ROTTERDAM | N118: PALTAS FRESCAS | O118: VARIEDAD: HASS SE ACOGE AL DRAWBACK SEGUN D.S. 104-95 E.F. | P118: hass | Q118: 1.73410812
A119: 0804400000 | B119: AGUACATES (PALTAS), FRESCOS O SECOS. | C119: 20120306 | D119: 2012 | E119: 03 | F119: NETHERLANDS | G119: 29040 | H119: 21120 | I119: 23240 | J119: 21120 | K119: KG | L119: FCE EXPORT FRUIT S.A.C | M119: ROTTERDAM | N119: PALTA FRESCA | O119: VARIEDAD FUERTE DRAWBACK | P119: fuerte | Q119: 1.375
A120: 0804400000 | B120: AGUACATES (PALTAS), FRESCOS O SECOS. | C120: 20120307 | D120: 2012 | E120: 03 | F120: NETHERLANDS | G120: 27720 | H120: 21120 | I120: 22980 | J120: 21120 | K120: KG | L120: ATLANTIC FRUITS PERU BRANCH S.A.C. | M120: ROTTERDAM | N120: PALTA FUERTE | P120: fuerte | Q120: 1.3125
A121: 0804400000 | B121: AGUACATES (PALTAS), FRESCOS O SECOS. | C121: 20120307 | D121: 2012 | E121: 03 | F121: SPAIN | G121: 37596.24 | H121: 21120 | I121: 22730 | J121: 21120 | K121: KG | L121: EUROFRESH PERU S.A.C | M121: ALGECIRAS | N121: PALTA FRESCA | O121: EN CAJAS SE ACOGE AL DRAWBACK | Q121: 1.780125
A122: 0804400000 | B122: AGUACATES (PALTAS), FRESCOS O SECOS. | C122: 20120307 | D122: 2012 | E122: 03 | F122: SPAIN | G122: 35045.976 | H122: 21340 | I122: 23720 | J122: 21340 | K122: KG | L122: AGROINDUSTRIAS SOLCACE SOCIEDAD ANONIMA CERRADA | M122: ALGECIRAS | N122: PALTAS FRESCAS | O122: EN CAJAS SE ACOGE AL DRAWBACK | Q122: 1.642266917
A123: 0804400000 | B123: AGUACATES (PALTAS), FRESCOS O SECOS. | C123: 20120307 | D123: 2012 | E123: 03 | F123: SPAIN | G123: 35643.337 | H123: 21384 | I123: 23870 | J123: 21384 | K123: KG | L123: AGROINDUSTRIAS SOLCACE SOCIEDAD ANONIMA CERRADA | M123: ALGECIRAS | N123: PALTAS FRESCAS | O123: EN CAJAS SE ACOGE AL DRAWBACK | Q123: 1.666822718
A124: 0804400000 | B124: AGUACATES (PALTAS), FRESCOS O SECOS. | C124: 20120307 | D124: 2012 | E124: 03 | F124: SPAIN | G124: 38211.909 | H124: 21120 | I124: 23830 | J124: 21120 | K124: KG | L124: AGROINDUSTRIAS SOLCACE SOCIEDAD ANONIMA CERRADA | M124: ALGECIRAS | N124: PALTAS FRESCAS | O124: EN CAJAS SE ACOGE AL DRAWBACK | Q124: 1.809275994
A125: 0804400000 | B125: AGUACATES (PALTAS), FRESCOS O SECOS. | C125: 20120307 | D125: 2012 | E125: 03 | F125: SPAIN | G125: 36335.327 | H125: 21296 | I125: 23840 | J125: 21296 | K125: KG | L125: AGROINDUSTRIAS SOLCACE SOCIEDAD ANONIMA CERRADA | M125: ALGECIRAS | N125: PALTAS FRESCAS | O125: EN CAJAS SE ACOGE AL DRAWBACK | Q125: 1.706204311
A126: 0804400000 | B126: AGUACATES (PALTAS), FRESCOS O SECOS. | C126: 20120307 | D126: 2012 | E126: 03 | F126: SPAIN | G126: 45408 | H126: 21120 | I126: 23840 | J126: 21120 | K126: KG | L126: AGRICOLA AYACUCHO S.A. | M126: ALGECIRAS | N126: PALTAS FRESCAS | O126: HASS NOS ACOGEMOS A REGIMEN DRAWBACK SEGUN D.S. 104-95 E.F. | P126: hass | Q126: 2.15
A127: 0804400000 | B127: AGUACATES (PALTAS), FRESCOS O SECOS. | C127: 20120307 | D127: 2012 | E127: 03 | F127: NETHERLANDS | G127: 42574.963 | H127: 21296 | I127: 23880 | J127: 21296 | K127: KG | L127: AGROINDUSTRIAS SOLCACE SOCIEDAD ANONIMA CERRADA | M127: ROTTERDAM | N127: PALTAS FRESCAS | O127: EN CAJAS SE ACOGE AL DRAWBACK | Q127: 1.999199991
A128: 0804400000 | B128: AGUACATES (PALTAS), FRESCOS O SECOS. | C128: 20120309 | D128: =LEFT(C128,4) -> 2012 | E128: =MIDB(C128,5,2) -> 03 | F128: NETHERLANDS | G128: 29321.6 | H128: 22000 | I128: 23350 | J128: 22000 | K128: KG | L128: AGROINDUSTRIAS VERDEFLOR S.A.C. | M128: ROTTERDAM | N128: PALTAS FRESCAS | O128: VARIEDAD: HASS SE ACOGE AL DRAWBACK SEGUN D.S. 104-95 E.F. | P128: hass | Q128: =G128/H128 -> 1.3328
A129: 0804400000 | B129: AGUACATES (PALTAS), FRESCOS O SECOS. | C129: 20120309 | D129: 2012 | E129: 03 | F129: NETHERLANDS | G129: 38211.91 | H129: 21120 | I129: 23700 | J129: 21120 | K129: KG | L129: AGROINDUSTRIAS SOLCACE SOCIEDAD ANONIMA CERRADA | M129: ROTTERDAM | N129: PALTAS FRESCAS | O129: EN CAJAS SE ACOGE AL DRAWBACK | Q129: 1.809276042
A130: 0804400000 | B130: AGUACATES (PALTAS), FRESCOS O SECOS. | C130: 20120309 | D130: 2012 | E130: 03 | F130: NETHERLANDS | G130: 25474.606 | H130: 21120 | I130: 23120 | J130: 21120 | K130: KG | L130: AGROINDUSTRIAS VERDEFLOR S.A.C. | M130: ROTTERDAM | N130: PALTAS FRESCAS | O130: VARIEDAD: FUERTE SE ACOGE AL DRAWBACK SEGUN D.S. 104-95 E.F. | P130: fuerte | Q130: 1.206183996
A131: 0804400000 | B131: AGUACATES (PALTAS), FRESCOS O SECOS. | C131: 20120309 | D131: 2012 | E131: 03 | F131: NETHERLANDS | G131: 44627.475 | H131: 21296 | I131: 23240 | J131: 21296 | K131: KG | L131: KEMBLE PERU TRADING SAC | M131: ROTTERDAM | N131: PALTA FRESCA | O131: VARIEDAD: HASS, FUERTE NOS ACOGEMOS AL DRAWBACK SEGUN DS 104-95 EF | P131: hass/fuerte | Q131: 2.095580156
A132: 0804400000 | B132: AGUACATES (PALTAS), FRESCOS O SECOS. | C132: 20120309 | D132: 2012 | E132: 03 | F132: NETHERLANDS | G132: 44627.475 | H132: 21296 | I132: 23200 | J132: 21296 | K132: KG | L132: KEMBLE PERU TRADING SAC | M132: ROTTERDAM | N132: PALTA FRESCA | O132: VARIEDAD: HASS, FUERTE NOS ACOGEMOS AL DRAWBACK SEGUN DS 104-95 EF | P132: hass/fuerte | Q132: 2.095580156
A133: 0804400000 | B133: AGUACATES (PALTAS), FRESCOS O SECOS. | C133: 20120309 | D133: 2012 | E133: 03 | F133: NETHERLANDS | G133: 44627.475 | H133: 21120 | I133: 23140 | J133: 21120 | K133: KG | L133: KEMBLE PERU TRADING SAC | M133: ROTTERDAM | N133: PALTA FRESCA | O133: VARIEDAD: HASS, FUERTE NOS ACOGEMOS AL DRAWBACK SEGUN DS 104-95 EF | P133: hass/fuerte | Q133: 2.113043324
A134: 0804400000 | B134: AGUACATES (PALTAS), FRESCOS O SECOS. | C134: 20120309 | D134: 2012 | E134: 03 | F134: NETHERLANDS | G134: 31680 | H134: 21120 | I134: 23350 | J134: 21120 | K134: KG | L134: FCE EXPORT FRUIT S.A.C | M134: ROTTERDAM | N134: PALTA FRESCA | O134: VARIEDAD FUERTE DRAWBACK | P134: fuerte | Q134: 1.5
A135: 0804400000 | B135: AGUACATES (PALTAS), FRESCOS O SECOS. | C135: 20120309 | D135: 2012 | E135: 03 | F135: NETHERLANDS | G135: 19536 | H135: 21120 | I135: 23390 | J135: 21120 | K135: KG | L135: PERU FRUT TROPICAL SOCIEDAD ANONIMA CERRADA | M135: ROTTERDAM | N135: PALTAS FRESCAS REFRIGERADAS | O135: VARIEDAD FUERTE DRAWBACK | P135: fuerte | Q135: 0.925
A136: 0804400000 | B136: AGUACATES (PALTAS), FRESCOS O SECOS. | C136: 20120309 | D136: 2012 | E136: 03 | F136: NETHERLANDS | G136: 25766.4 | H136: 21120 | I136: 24000 | J136: 21120 | K136: KG | L136: PROCESADORA TORRE BLANCA S.A. | M136: ROTTERDAM | N136: PALTA FUERTE | O136: FRESCA - EN CAJAS DRAWBACK | P136: fuerte | Q136: 1.22
A137: 0804400000 | B137: AGUACATES (PALTAS), FRESCOS O SECOS. | C137: 20120309 | D137: 2012 | E137: 03 | F137: UNITED KINGDOM | G137: 45408 | H137: 21120 | I137: 23780 | J137: 21120 | K137: KG | L137: AGRICOLA AYACUCHO S.A. | M137: TILBURY | N137: PALTA HASS | O137: FRESCA - EN CAJAS DRAWBACK | P137: hass | Q137: 2.15
A138: 0804400000 | B138: AGUACATES (PALTAS), FRESCOS O SECOS. | C138: 20120309 | D138: 2012 | E138: 03 | F138: NETHERLANDS | G138: 45408 | H138: 21120 | I138: 23860 | J138: 21120 | K138: KG | L138: AGRICOLA AYACUCHO S.A. | M138: ROTTERDAM | N138: PALTA HASS | O138: FRESCA - EN CAJAS DRAWBACK | P138: hass | Q138: 2.15
A139: 0804400000 | B139: AGUACATES (PALTAS), FRESCOS O SECOS. | C139: 20120309 | D139: 2012 | E139: 03 | F139: UNITED KINGDOM | G139: 32524.8 | H139: 21120 | I139: 23850 | J139: 21120 | K139: KG | L139: AGRICOLA AYACUCHO S.A. | M139: TILBURY | N139: PALTA FUERTE | O139: FRESCA - EN CAJAS DRAWBACK | P139: fuerte | Q139: 1.54
A140: 0804400000 | B140: AGUACATES (PALTAS), FRESCOS O SECOS. | C140: 20120309 | D140: 2012 | E140: 03 | F140: NETHERLANDS | G140: 45408 | H140: 21120 | I140: 23870 | J140: 21120 | K140: KG | L140: AGRICOLA AYACUCHO S.A. | M140: ROTTERDAM | N140: PALTA HASS | O140: FRESCA - EN CAJAS DRAWBACK | P140: hass | Q140: 2.15
A141: 0804400000 | B141: AGUACATES (PALTAS), FRESCOS O SECOS. | C141: 20120309 | D141: 2012 | E141: 03 | F141: NETHERLANDS | G141: 45408 | H141: 21120 | I141: 23810 | J141: 21120 | K141: KG | L141: AGRICOLA AYACUCHO S.A. | M141: ROTTERDAM | N141: PALTA HASS | O141: FRESCA - EN CAJAS DRAWBACK | P141: hass | Q141: 2.15
A142: 0804400000 | B142: AGUACATES (PALTAS), FRESCOS O SECOS. | C142: 20120309 | D142: 2012 | E142: 03 | F142: NETHERLANDS | G142: 46464 | H142: 21120 | I142: 23850 | J142: 21120 | K142: KG | L142: AGRICOLA AYACUCHO S.A. | M142: ROTTERDAM | N142: PALTA HASS | O142: FRESCA - EN CAJAS DRAWBACK | P142: hass | Q142: 2.2
A143: 0804400000 | B143: AGUACATES (PALTAS), FRESCOS O SECOS. | C143: 20120309 | D143: 2012 | E143: 03 | F143: NETHERLANDS | G143: 32524.8 | H143: 21120 | I143: 23790 | J143: 21120 | K143: KG | L143: AGRICOLA AYACUCHO S.A. | M143: ROTTERDAM | N143: PALTA FUERTE | O143: FRESCA - EN CAJAS DRAWBACK | P143: fuerte | Q143: 1.54
A144: 0804400000 | B144: AGUACATES (PALTAS), FRESCOS O SECOS. | C144: 20120309 | D144: 2012 | E144: 03 | F144: NETHERLANDS | G144: 45667.6 | H144: 21208 | I144: 23960 | J144: 21208 | K144: KG | L144: AGRICOLA AYACUCHO S.A. | M144: ROTTERDAM | N144: PALTA HASS | O144: FRESCA - EN CAJAS DRAWBACK | P144: hass | Q144: 2.153319502
A145: 0804400000 | B145: AGUACATES (PALTAS), FRESCOS O SECOS. | C145: 20120309 | D145: 2012 | E145: 03 | F145: NETHERLANDS | G145: 20689.32 | H145: 21120 | I145: 23020 | J145: 21120 | K145: KG | L145: AGROINDUSTRIAS VERDEFLOR S.A.C. | M145: ROTTERDAM | N145: PALTAS FRESCAS | O145: VARIEDAD: FUERTE SE ACOGE AL DRAWBACK SEGUN D.S. 104-95 E.F. | P145: fuerte | Q145: 0.9796079545
A146: 0804400000 | B146: AGUACATES (PALTAS), FRESCOS O SECOS. | C146: 20120309 | D146: 2012 | E146: 03 | F146: NETHERLANDS | G146: 28207.379 | H146: 21164 | I146: 23860 | J146: 21164 | K146: KG | L146: AGRICOLA AYACUCHO S.A. | M146: ROTTERDAM | N146: PALTA HASS | O146: FRESCA - EN CAJAS DRAWBACK | P146: hass | Q146: 1.332799991
A147: 0804400000 | B147: AGUACATES (PALTAS), FRESCOS O SECOS. | C147: 20120311 | D147: 2012 | E147: 03 | F147: UNITED KINGDOM | G147: 39680 | H147: 21120 | I147: 23800 | J147: 21120 | K147: KG | L147: TROPICAL FRUIT TRADING PERU SOCIEDAD ANO | M147: DOVER | N147: PALTA FRESCA | O147: SE ACOGE AL REGIMEN DE RESTITUCION DE DERECHOS ARANCELARIOS D.S.104-95-EF | Q147: 1.878787879
A148: 0804400000 | B148: AGUACATES (PALTAS), FRESCOS O SECOS. | C148: 20120311 | D148: 2012 | E148: 03 | F148: RUSSIAN FEDERATION | G148: 23232 | H148: 21120 | I148: 23170 | J148: 21120 | K148: KG | L148: AGROINDUSTRIAS VERDEFLOR S.A.C. | M148: ST PETERSBURG (EX LENINGRAD) | N148: PALTAS FRESCAS | O148: VARIEDAD: FUERTE SE ACOGE AL DRAWBACK SEGUN D.S. 104-95 E.F. | P148: fuerte | Q148: 1.1
A149: 0804400000 | B149: AGUACATES (PALTAS), FRESCOS O SECOS. | C149: 20120312 | D149: 2012 | E149: 03 | F149: NETHERLANDS | G149: 32524.8 | H149: 21120 | I149: 23810 | J149: 21120 | K149: KG | L149: AGRICOLA AYACUCHO S.A. | M149: ROTTERDAM | N149: PALTAS FRESCAS | O149: FUERTE NOS ACOGEMOS A REGIMEN DRAWBACK SEGUN D.S. 104-95 E.F. | P149: fuerte | Q149: 1.54
A150: 0804400000 | B150: AGUACATES (PALTAS), FRESCOS O SECOS. | C150: 20120312 | D150: 2012 | E150: 03 | F150: NETHERLANDS | G150: 46464 | H150: 21120 | I150: 23930 | J150: 21120 | K150: KG | L150: AGRICOLA AYACUCHO S.A. | M150: ROTTERDAM | N150: PALTAS FRESCAS | O150: HASS NOS ACOGEMOS A REGIMEN DRAWBACK SEGUN D.S. 104-95 E.F. | P150: hass | Q150: 2.2
A151: 0804400000 | B151: AGUACATES (PALTAS), FRESCOS O SECOS. | C151: 20120313 | D151: 2012 | E151: 03 | F151: NETHERLANDS | G151: 48497.926 | H151: 21296 | I151: 23220 | J151: 21296 | K151: KG | L151: KEMBLE PERU TRADING SAC | M151: ROTTERDAM | N151: PALTA FRESCA | O151: VARIEDAD: HASS, FUERTE NOS ACOGEMOS AL DRAWBACK SEGUN DS 104-95 EF | P151: hass/fuerte | Q151: 2.277325601
A152: 0804400000 | B152: AGUACATES (PALTAS), FRESCOS O SECOS. | C152: 20120313 | D152: 2012 | E152: 03 | F152: NETHERLANDS | G152: 31680 | H152: 21120 | I152: 23460 | J152: 21120 | K152: KG | L152: FCE EXPORT FRUIT S.A.C | M152: ROTTERDAM | N152: PALTA FRESCA | O152: VARIEDAD FUERTE DRAWBACK | P152: fuerte | Q152: 1.5
A153: 0804400000 | B153: AGUACATES (PALTAS), FRESCOS O SECOS. | C153: 20120313 | D153: 2012 | E153: 03 | F153: NETHERLANDS | G153: 33672.925 | H153: 21164 | I153: 23070 | J153: 21164 | K153: KG | L153: AGROINDUSTRIAS VERDEFLOR S.A.C. | M153: ROTTERDAM | N153: PALTAS FRESCAS | O153: VARIEDAD: FUERTE, HASS SE ACOGE AL DRAWBACK SEGUN D.S. 104-95 E.F. | P153: hass/fuerte | Q153: 1.591047297
A154: 0804400000 | B154: AGUACATES (PALTAS), FRESCOS O SECOS. | C154: 20120313 | D154: 2012 | E154: 03 | F154: NETHERLANDS | G154: 40299.607 | H154: 21208 | I154: 23220 | J154: 21208 | K154: KG | L154: AGROINDUSTRIAS VERDEFLOR S.A.C. | M154: ROTTERDAM | N154: PALTAS FRESCAS | O154: VARIEDAD: HASS SE ACOGE AL DRAWBACK SEGUN D.S. 104-95 E.F. | P154: hass | Q154: 1.900207799
A155: 0804400000 | B155: AGUACATES (PALTAS), FRESCOS O SECOS. | C155: 20120313 | D155: 2012 | E155: 03 | F155: NETHERLANDS | G155: 36839.658 | H155: 21208 | I155: 23100 | J155: 21208 | K155: KG | L155: AGROINDUSTRIAS VERDEFLOR S.A.C. | M155: ROTTERDAM | N155: PALTAS FRESCAS | O155: VARIEDAD: HASS SE ACOGE AL DRAWBACK SEGUN D.S. 104-95 E.F. | P155: hass | Q155: 1.737064221
A156: 0804400000 | B156: AGUACATES (PALTAS), FRESCOS O SECOS. | C156: 20120313 | D156: 2012 | E156: 03 | F156: NETHERLANDS | G156: 31212 | H156: 20808 | I156: 22892.329 | J156: 20808 | K156: KG | L156: FCE EXPORT FRUIT S.A.C | M156: ROTTERDAM | N156: PALTA FRESCA | O156: VARIEDAD FUERTE DRAWBACK | P156: fuerte | Q156: 1.5
A157: 0804400000 | B157: AGUACATES (PALTAS), FRESCOS O SECOS. | C157: 20120313 | D157: 2012 | E157: 03 | F157: NETHERLANDS | G157: 624 | H157: 312 | I157: 457.671 | J157: 312 | K157: KG | L157: FCE EXPORT FRUIT S.A.C | M157: ROTTERDAM | N157: PALTA FRESCA | O157: VARIEDAD HASS DRAWBACK | P157: hass | Q157: 2
A158: 0804400000 | B158: AGUACATES (PALTAS), FRESCOS O SECOS. | C158: 20120314 | D158: 2012 | E158: 03 | F158: SPAIN | G158: 33088.56 | H158: 21120 | I158: 22720 | J158: 21120 | K158: KG | L158: EUROFRESH PERU S.A.C | M158: ALGECIRAS | N158: PALTAS FRESCAS | O158: EN CAJAS SE ACOGE AL DRAWBACK | Q158: 1.566693182
A159: 0804400000 | B159: AGUACATES (PALTAS), FRESCOS O SECOS. | C159: 20120314 | D159: 2012 | E159: 03 | F159: SPAIN | G159: 39349.588 | H159: 21296 | I159: 23920 | J159: 21296 | K159: KG | L159: AGROINDUSTRIAS SOLCACE SOCIEDAD ANONIMA CERRADA | M159: ALGECIRAS | N159: PALTAS FRESCAS | O159: EN CAJAS SE ACOGE AL DRAWBACK | Q159: 1.847745492
A160: 0804400000 | B160: AGUACATES (PALTAS), FRESCOS O SECOS. | C160: 20120314 | D160: 2012 | E160: 03 | F160: SPAIN | G160: 42486.998 | H160: 21252 | I160: 23830 | J160: 21252 | K160: KG | L160: AGROINDUSTRIAS SOLCACE SOCIEDAD ANONIMA CERRADA | M160: ALGECIRAS | N160: PALTAS FRESCAS | O160: EN CAJAS SE ACOGE AL DRAWBACK | Q160: 1.999199981
A161: 0804400000 | B161: AGUACATES (PALTAS), FRESCOS O SECOS. | C161: 20120314 | D161: 2012 | E161: 03 | F161: SPAIN | G161: 38969.073 | H161: 21340 | I161: 23760 | J161: 21340 | K161: KG | L161: AGROINDUSTRIAS SOLCACE SOCIEDAD ANONIMA CERRADA | M161: ALGECIRAS | N161: PALTAS FRESCAS | O161: EN CAJAS SE ACOGE AL DRAWBACK | Q161: 1.826104639
A162: 0804400000 | B162: AGUACATES (PALTAS), FRESCOS O SECOS. | C162: 20120314 | D162: 2012 | E162: 03 | F162: SPAIN | G162: 38616.547 | H162: 21384 | I162: 23860 | J162: 21384 | K162: KG | L162: AGROINDUSTRIAS SOLCACE SOCIEDAD ANONIMA CERRADA | M162: ALGECIRAS | N162: PALTAS FRESCAS | O162: EN CAJAS SE ACOGE AL DRAWBACK | Q162: 1.805861719
A163: 0804400000 | B163: AGUACATES (PALTAS), FRESCOS O SECOS. | C163: 20120314 | D163: 2012 | E163: 03 | F163: UNITED KINGDOM | G163: 27456 | H163: 21120 | I163: 23850 | J163: 21120 | K163: KG | L163: PROCESADORA TORRE BLANCA S.A. | M163: TILBURY | N163: PALTA FUERTE | O163: FRESCA - EN CAJAS DRAWBACK | P163: fuerte | Q163: 1.3
A164: 0804400000 | B164: AGUACATES (PALTAS), FRESCOS O SECOS. | C164: 20120314 | D164: 2012 | E164: 03 | F164: NETHERLANDS | G164: 45408 | H164: 21120 | I164: 23570 | J164: 21120 | K164: KG | L164: AGRICOLA CERRO PRIETO S.A.C. | M164: ROTTERDAM | N164: PALTAS FRESCAS | O164: EN CAJAS, VARIEDAD HASS CONSUMO HUMANO DRAWBACK | P164: hass | Q164: 2.15
A165: 0804400000 | B165: AGUACATES (PALTAS), FRESCOS O SECOS. | C165: 20120314 | D165: 2012 | E165: 03 | F165: NETHERLANDS | G165: 27720 | H165: 21120 | I165: 23000 | J165: 21120 | K165: KG | L165: ATLANTIC FRUITS PERU BRANCH S.A.C. | M165: ROTTERDAM | N165: PALTA FUERTE | P165: fuerte | Q165: 1.3125
A166: 0804400000 | B166: AGUACATES (PALTAS), FRESCOS O SECOS. | C166: 20120314 | D166: 2012 | E166: 03 | F166: NETHERLANDS | G166: 25344 | H166: 21120 | I166: 23800 | J166: 21120 | K166: KG | L166: PROCESADORA TORRE BLANCA S.A. | M166: ROTTERDAM | N166: PALTA FUERTE | O166: FRESCA - EN CAJAS DRAWBACK | P166: fuerte | Q166: 1.2
A167: 0804400000 | B167: AGUACATES (PALTAS), FRESCOS O SECOS. | C167: 20120314 | D167: 2012 | E167: 03 | F167: SPAIN | G167: 45408 | H167: 21120 | I167: 23800 | J167: 21120 | K167: KG | L167: AGROPECUARIA LAS LOMAS DE CHILCA S.A | M167: ALGECIRAS | N167: PALTAS FRESCAS | O167: HASS NOS ACOGEMOS A REGIMEN DRAWBACK SEGUN D.S. 104-95 E.F. | P167: hass | Q167: 2.15
A168: 0804400000 | B168: AGUACATES (PALTAS), FRESCOS O SECOS. | C168: 20120314 | D168: 2012 | E168: 03 | F168: SPAIN | G168: 45408 | H168: 21120 | I168: 23790 | J168: 21120 | K168: KG | L168: AGROPECUARIA LAS LOMAS DE CHILCA S.A | M168: ALGECIRAS | N168: PALTAS FRESCAS | O168: HASS NOS ACOGEMOS A REGIMEN DRAWBACK SEGUN D.S. 104-95 E.F. | P168: hass | Q168: 2.15
A169: 0804400000 | B169: AGUACATES (PALTAS), FRESCOS O SECOS. | C169: 20120315 | D169: 2012 | E169: 03 | F169: CHILE | G169: 4162 | H169: 9360 | I169: 9830 | J169: 9360 | K169: KG | L169: YUGRA SOSA MARIO MARTIN | M169: ARICA | N169: PALTA FRESCA | O169: EN CAJAS DE CARTON C/U POR 13 KG. NETOS PARA CONSUMO HUMANO | Q169: 0.4446581197
A170: 0804400000 | B170: AGUACATES (PALTAS), FRESCOS O SECOS. | C170: 20120316 | D170: 2012 | E170: 03 | F170: NETHERLANDS | G170: 46357.45 | H170: 21384 | I170: 23770 | J170: 21384 | K170: KG | L170: AGROINDUSTRIAS SOLCACE SOCIEDAD ANONIMA CERRADA | M170: ROTTERDAM | N170: PALTAS FRESCAS | O170: EN CAJAS SE ACOGE AL DRAWBACK | Q170: 2.167856809
A171: 0804400000 | B171: AGUACATES (PALTAS), FRESCOS O SECOS. | C171: 20120316 | D171: 2012 | E171: 03 | F171: NETHERLANDS | G171: 46357.45 | H171: 21384 | I171: 23770 | J171: 21384 | K171: KG | L171: AGROINDUSTRIAS SOLCACE SOCIEDAD ANONIMA CERRADA | M171: ROTTERDAM | N171: PALTAS FRESCAS | O171: EN CAJAS SE ACOGE AL DRAWBACK | Q171: 2.167856809
A172: 0804400000 | B172: AGUACATES (PALTAS), FRESCOS O SECOS. | C172: 20120316 | D172: 2012 | E172: 03 | F172: NETHERLANDS | G172: 27720 | H172: 21120 | I172: 23380 | J172: 21120 | K172: KG | L172: ATLANTIC FRUITS PERU BRANCH S.A.C. | M172: ROTTERDAM | N172: PALTA FUERTE | P172: fuerte | Q172: 1.3125
A173: 0804400000 | B173: AGUACATES (PALTAS), FRESCOS O SECOS. | C173: 20120316 | D173: 2012 | E173: 03 | F173: NETHERLANDS | G173: 50960.94 | H173: 21296 | I173: 23060 | J173: 21296 | K173: KG | L173: KEMBLE PERU TRADING SAC | M173: ROTTERDAM | N173: PALTA FRESCA | O173: VARIEDAD: HASS, FUERTE NOS ACOGEMOS AL DRAWBACK SEGUN DS 104-95 EF | P173: hass/fuerte | Q173: 2.392981781
A174: 0804400000 | B174: AGUACATES (PALTAS), FRESCOS O SECOS. | C174: 20120316 | D174: 2012 | E174: 03 | F174: NETHERLANDS | G174: 49729.434 | H174: 21296 | I174: 23020 | J174: 21296 | K174: KG | L174: KEMBLE PERU TRADING SAC | M174: ROTTERDAM | N174: PALTA FRESCA | O174: VARIEDAD: HASS, FUERTE NOS ACOGEMOS AL DRAWBACK SEGUN DS 104-95 EF | P174: hass/fuerte | Q174: 2.335153738
A175: 0804400000 | B175: AGUACATES (PALTAS), FRESCOS O SECOS. | C175: 20120316 | D175: 2012 | E175: 03 | F175: NETHERLANDS | G175: 50960.94 | H175: 21296 | I175: 23040 | J175: 21296 | K175: KG | L175: KEMBLE PERU TRADING SAC | M175: ROTTERDAM | N175: PALTA FRESCA | O175: VARIEDAD: HASS, FUERTE NOS ACOGEMOS AL DRAWBACK SEGUN DS 104-95 EF | P175: hass/fuerte | Q175: 2.392981781
A176: 0804400000 | B176: AGUACATES (PALTAS), FRESCOS O SECOS. | C176: 20120316 | D176: 2012 | E176: 03 | F176: NETHERLANDS | G176: 42304 | H176: 21120 | I176: 23700 | J176: 21120 | K176: KG | L176: AGRONEGOCIOS LA GRAMA S.A.C. | M176: ROTTERDAM | N176: PALTA FRESCA | O176: VARIEDAD: HASS, FUERTE NOS ACOGEMOS AL DRAWBACK SEGUN DS 104-95 EF | P176: hass/fuerte | Q176: 2.003030303
A177: 0804400000 | B177: AGUACATES (PALTAS), FRESCOS O SECOS. | C177: 20120316 | D177: 2012 | E177: 03 | F177: NETHERLANDS | G177: 46987.864 | H177: 21340 | I177: 23200 | J177: 21340 | K177: KG | L177: KEMBLE PERU TRADING SAC | M177: ROTTERDAM | N177: PALTA FRESCA | O177: VARIEDAD: HASS, FUERTE NOS ACOGEMOS AL DRAWBACK SEGUN DS 104-95 EF | P177: hass/fuerte | Q177: 2.201868041
A178: 0804400000 | B178: AGUACATES (PALTAS), FRESCOS O SECOS. | C178: 20120316 | D178: 2012 | E178: 03 | F178: NETHERLANDS | G178: 24630.144 | H178: 21120 | I178: 23100 | J178: 21120 | K178: KG | L178: AGROINDUSTRIAS VERDEFLOR S.A.C. | M178: ROTTERDAM | N178: PALTAS FRESCAS | O178: VARIEDAD: HASS SE ACOGE AL DRAWBACK SEGUN D.S. 104-95 E.F. | P178: hass | Q178: 1.1662
A179: 0804400000 | B179: AGUACATES (PALTAS), FRESCOS O SECOS. | C179: 20120316 | D179: 2012 | E179: 03 | F179: NETHERLANDS | G179: 21428.225 | H179: 21120 | I179: 22960 | J179: 21120 | K179: KG | L179: AGROINDUSTRIAS VERDEFLOR S.A.C. | M179: ROTTERDAM | N179: PALTAS FRESCAS | O179: VARIEDAD: HASS SE ACOGE AL DRAWBACK SEGUN D.S. 104-95 E.F. | P179: hass | Q179: 1.014593987
A180: 0804400000 | B180: AGUACATES (PALTAS), FRESCOS O SECOS. | C180: 20120316 | D180: 2012 | E180: 03 | F180: UNITED KINGDOM | G180: 47520 | H180: 21120 | I180: 23760 | J180: 21120 | K180: KG | L180: PRODUCTOS DEL VALLE S.A.C. | M180: TILBURY | N180: PALTA FUERTE | O180: DRAWBACK | P180: fuerte | Q180: 2.25
A181: 0804400000 | B181: AGUACATES (PALTAS), FRESCOS O SECOS. | C181: 20120316 | D181: 2012 | E181: 03 | F181: NETHERLANDS | G181: 45408 | H181: 21120 | I181: 23700 | J181: 21120 | K181: KG | L181: AGRICOLA AYACUCHO S.A. | M181: ROTTERDAM | N181: PALTA HASS | O181: FRESCA - EN CAJAS DRAWBACK | P181: hass | Q181: 2.15
A182: 0804400000 | B182: AGUACATES (PALTAS), FRESCOS O SECOS. | C182: 20120316 | D182: 2012 | E182: 03 | F182: NETHERLANDS | G182: 27456 | H182: 21120 | I182: 23440 | J182: 21120 | K182: KG | L182: FPG STERLING DEL PERU S.A.C. | M182: ROTTERDAM | N182: PALTA FUERTE | O182: DRAWBACK | P182: fuerte | Q182: 1.3
A183: 0804400000 | B183: AGUACATES (PALTAS), FRESCOS O SECOS. | C183: 20120316 | D183: 2012 | E183: 03 | F183: UNITED KINGDOM | G183: 32524.8 | H183: 21120 | I183: 23640 | J183: 21120 | K183: KG | L183: AGRICOLA AYACUCHO S.A. | M183: TILBURY | N183: PALTA FUERTE | O183: FRESCA - EN CAJAS DRAWBACK | P183: fuerte | Q183: 1.54
A184: 0804400000 | B184: AGUACATES (PALTAS), FRESCOS O SECOS. | C184: 20120316 | D184: 2012 | E184: 03 | F184: UNITED KINGDOM | G184: 45408 | H184: 21120 | I184: 23800 | J184: 21120 | K184: KG | L184: AGRICOLA AYACUCHO S.A. | M184: TILBURY | N184: PALTA HASS | O184: FRESCA - EN CAJAS DRAWBACK | P184: hass | Q184: 2.15
A185: 0804400000 | B185: AGUACATES (PALTAS), FRESCOS O SECOS. | C185: 20120316 | D185: 2012 | E185: 03 | F185: NETHERLANDS | G185: 45408 | H185: 21120 | I185: 23750 | J185: 21120 | K185: KG | L185: AGRICOLA AYACUCHO S.A. | M185: ROTTERDAM | N185: PALTA HASS | O185: FRESCA - EN CAJAS DRAWBACK | P185: hass | Q185: 2.15
A186: 0804400000 | B186: AGUACATES (PALTAS), FRESCOS O SECOS. | C186: 20120316 | D186: 2012 | E186: 03 | F186: NETHERLANDS | G186: 45408 | H186: 21120 | I186: 23810 | J186: 21120 | K186: KG | L186: AGRICOLA AYACUCHO S.A. | M186: ROTTERDAM | N186: PALTA HASS | O186: FRESCA - EN CAJAS DRAWBACK | P186: hass | Q186: 2.15
A187: 0804400000 | B187: AGUACATES (PALTAS), FRESCOS O SECOS. | C187: 20120316 | D187: 2012 | E187: 03 | F187: NETHERLANDS | G187: 44794.2 | H187: 21252 | I187: 23950 | J187: 21252 | K187: KG | L187: AGROPECUARIA LAS LOMAS DE CHILCA S.A | M187: ROTTERDAM | N187: PALTA HASS | O187: FRESCA - EN CAJAS DRAWBACK | P187: hass | Q187: 2.107763975
A188: 0804400000 | B188: AGUACATES (PALTAS), FRESCOS O SECOS. | C188: 20120316 | D188: 2012 | E188: 03 | F188: UNITED KINGDOM | G188: 46332 | H188: 21252 | I188: 24770 | J188: 21252 | K188: KG | L188: AGROPECUARIA LAS LOMAS DE CHILCA S.A | M188: TILBURY | N188: PALTA HASS | O188: FRESCA - EN CAJAS DRAWBACK | P188: hass | Q188: 2.180124224
A189: 0804400000 | B189: AGUACATES (PALTAS), FRESCOS O SECOS. | C189: 20120316 | D189: 2012 | E189: 03 | F189: NETHERLANDS | G189: 45741.696 | H189: 21120 | I189: 22970 | J189: 21120 | K189: KG | L189: AGROINDUSTRIAS VERDEFLOR S.A.C. | M189: ROTTERDAM | N189: PALTAS FRESCAS | O189: VARIEDAD: HASS SE ACOGE AL DRAWBACK SEGUN D.S. 104-95 E.F. | P189: hass | Q189: 2.1658
A190: 0804400000 | B190: AGUACATES (PALTAS), FRESCOS O SECOS. | C190: 20120316 | D190: 2012 | E190: 03 | F190: NETHERLANDS | G190: 25333.862 | H190: 21120 | I190: 23100 | J190: 21120 | K190: KG | L190: AGROINDUSTRIAS VERDEFLOR S.A.C. | M190: ROTTERDAM | N190: PALTAS FRESCAS | O190: VARIEDAD: FUERTE SE ACOGE AL DRAWBACK SEGUN D.S. 104-95 E.F. | P190: fuerte | Q190: 1.199519981
A191: 0804400000 | B191: AGUACATES (PALTAS), FRESCOS O SECOS. | C191: 20120316 | D191: 2012 | E191: 03 | F191: NETHERLANDS | G191: 20592 | H191: 21120 | I191: 23190 | J191: 21120 | K191: KG | L191: PERU FRUT TROPICAL SOCIEDAD ANONIMA CERRADA | M191: ROTTERDAM | N191: PALTAS FRESCAS REFRIGERADAS | O191: VARIEDAD FUERTE DRAWBACK | P191: fuerte | Q191: 0.975
A192: 0804400000 | B192: AGUACATES (PALTAS), FRESCOS O SECOS. | C192: 20120316 | D192: =LEFT(C192,4) -> 2012 | E192: =MIDB(C192,5,2) -> 03 | F192: NETHERLANDS | G192: 20592 | H192: 21120 | I192: 23290 | J192: 21120 | K192: KG | L192: PERU FRUT TROPICAL SOCIEDAD ANONIMA CERRADA | M192: ROTTERDAM | N192: PALTAS FRESCAS REFRIGERADAS | O192: VARIEDAD FUERTE DRAWBACK | P192: fuerte | Q192: =G192/H192 -> 0.975
A193: 0804400000 | B193: AGUACATES (PALTAS), FRESCOS O SECOS. | C193: 20120318 | D193: 2012 | E193: 03 | F193: NETHERLANDS | G193: 45844.322 | H193: 21164 | I193: 23710 | J193: 21164 | K193: KG | L193: AGROINDUSTRIAS SOLCACE SOCIEDAD ANONIMA CERRADA | M193: ROTTERDAM | N193: PALTAS FRESCAS | O193: EN CAJAS SE ACOGE AL DRAWBACK | Q193: 2.166146381
A194: 0804400000 | B194: AGUACATES (PALTAS), FRESCOS O SECOS. | C194: 20120318 | D194: 2012 | E194: 03 | F194: UNITED STATES | G194: 24288 | H194: 21120 | I194: 23170 | J194: 21120 | K194: KG | L194: AGROINDUSTRIAS VERDEFLOR S.A.C. | M194: SAINT PETERSBURG | N194: PALTAS FRESCAS | O194: VARIEDAD: FUERTE SE ACOGE AL DRAWBACK SEGUN D.S. 104-95 E.F. | P194: fuerte | Q194: 1.15
A195: 0804400000 | B195: AGUACATES (PALTAS), FRESCOS O SECOS. | C195: 20120319 | D195: 2012 | E195: 03 | F195: NETHERLANDS | G195: 32524.8 | H195: 21120 | I195: 23820 | J195: 21120 | K195: KG | L195: AGRICOLA AYACUCHO S.A. | M195: ROTTERDAM | N195: PALTAS FRESCAS | O195: NOS ACOGEMOS A REGIMEN DRAWBACK SEGUN D.S. 104-95 E.F. | Q195: 1.54
A196: 0804400000 | B196: AGUACATES (PALTAS), FRESCOS O SECOS. | C196: 20120319 | D196: 2012 | E196: 03 | F196: NETHERLANDS | G196: 45192.4 | H196: 17952 | I196: 23960 | J196: 17952 | K196: KG | L196: AGROPECUARIA LAS LOMAS DE CHILCA S.A | M196: ROTTERDAM | N196: PALTAS FRESCAS | O196: HASS NOS ACOGEMOS A REGIMEN DRAWBACK SEGUN D.S. 104-95 E.F. | P196: hass | Q196: 2.517401961
A197: 0804400000 | B197: AGUACATES (PALTAS), FRESCOS O SECOS. | C197: 20120319 | D197: 2012 | E197: 03 | F197: NETHERLANDS | G197: 46464 | H197: 21120 | I197: 23940 | J197: 21120 | K197: KG | L197: AGRICOLA AYACUCHO S.A. | M197: ROTTERDAM | N197: PALTAS FRESCAS | O197: NOS ACOGEMOS A REGIMEN DRAWBACK SEGUN D.S. 104-95 E.F. | Q197: 2.2
A198: 0804400000 | B198: AGUACATES (PALTAS), FRESCOS O SECOS. | C198: 20120320 | D198: 2012 | E198: 03 | F198: NETHERLANDS | G198: 35596.422 | H198: 21296 | I198: 23190 | J198: 21296 | K198: KG | L198: AGROINDUSTRIAS VERDEFLOR S.A.C. | M198: ROTTERDAM | N198: PALTAS FRESCAS | O198: VARIEDAD: FUERTE, HASS SE ACOGE AL DRAWBACK SEGUN D.S. 104-95 E.F. | P198: hass/fuerte | Q198: 1.671507419
A199: 0804400000 | B199: AGUACATES (PALTAS), FRESCOS O SECOS. | C199: 20120320 | D199: 2012 | E199: 03 | F199: NETHERLANDS | G199: 36734.1 | H199: 21296 | I199: 23160 | J199: 21296 | K199: KG | L199: AGROINDUSTRIAS VERDEFLOR S.A.C. | M199: ROTTERDAM | N199: PALTAS FRESCAS | O199: VARIEDAD: FUERTE, HASS SE ACOGE AL DRAWBACK SEGUN D.S. 104-95 E.F. | P199: hass/fuerte | Q199: 1.724929564
A200: 0804400000 | B200: AGUACATES (PALTAS), FRESCOS O SECOS. | C200: 20120320 | D200: 2012 | E200: 03 | F200: NETHERLANDS | G200: 40557.637 | H200: 21296 | I200: 23250 | J200: 21296 | K200: KG | L200: AGROINDUSTRIAS VERDEFLOR S.A.C. | M200: ROTTERDAM | N200: PALTAS FRESCAS | O200: VARIEDAD: FUERTE, HASS SE ACOGE AL DRAWBACK SEGUN D.S. 104-95 E.F. | P200: hass/fuerte | Q200: 1.90447206
... 4300 more rows

Sheet original
D5: Datos
A6: año | B6: PAIS_DESC | C6: EXPORTADOR | D6: Suma de UNID_FIQTY | E6: Suma de Valor FOB en US$
A7: 2007 | B7: AGUAS INTERNACIONALES | C7: REINAS DEL PACIFICO S.A.C. | D7: 3 | E7: 5.4
B8: Total AGUAS INTERNACIONALES | D8: 3 | E8: 5.4
B9: ALGERIA | C9: AGROINDUSTRIAS VERDEFLOR S.A.C. | D9: 21576 | E9: 27351.05
C10: CONSORCIO DE PRODUCTORES DE FRUTA S.A.. | D10: 105732 | E10: 220734.52
C11: SOLIS CACERES S.A.C. | D11: 40964 | E11: 47536.7
B12: Total ALGERIA | D12: 168272 | E12: 295622.27
B13: ARUBA | C13: CAM DE RIOJAS ADRIANA VICTORIA | D13: 83 | E13: 116.2
C14: IMPORT & EXPORT SOLANO SOCIEDAD ANONIMA | D14: 0.095 | E14: 2
B15: Total ARUBA | D15: 83.095 | E15: 118.2
B16: BELGIUM | C16: CAMPOSOL S.A. | D16: 252480 | E16: 336700.78
C17: SOLIS CACERES S.A.C. | D17: 61488 | E17: 81918
B18: Total BELGIUM | D18: 313968 | E18: 418618.78
B19: CANADA | C19: CAMPOSOL S.A. | D19: 625232 | E19: 1229632
C20: SOCIEDAD AGRICOLA DROKASA S.A. | D20: 106224 | E20: 167279.04
C21: WAIMANALO FAIR FRUIT TRADING S.A.C. EN LIQUIDACION | D21: 21120 | E21: 36960
B22: Total CANADA | D22: 752576 | E22: 1433871.04
B23: CHILE | C23: CAMPOSOL S.A. | D23: 12000 | E23: 6000
C24: YUGRA SOSA MARIO MARTIN | D24: 387671 | E24: 96918.25
B25: Total CHILE | D25: 399671 | E25: 102918.25
B26: CHINA | C26: COMISION DE PROMOCION DEL PERU PARA LA EXPORTACION Y EL TURISMO - PROMPERU | D26: 15 | E26: 4.7
B27: Total CHINA | D27: 15 | E27: 4.7
B28: FRANCE | C28: AGRICOLA CHAPI S.A. | D28: 265568 | E28: 360745.5
C29: AGRICOLA COPACABANA DE CHINCHA S.A. | D29: 459004 | E29: 579563.22
C30: AGRICOLA DON RICARDO S.A.C. | D30: 634824 | E30: 873824.12
C31: AGROINDUSTRIAS VERDEFLOR S.A.C. | D31: 22080 | E31: 21580.99
C32: ASOC.PARA DESAR.INT.DE LAS COMUN.DEL SUR | D32: 19200 | E32: 26400
C33: AVO PERU SAC | D33: 21068 | E33: 29542.71
C34: CAMPOSOL S.A. | D34: 83525 | E34: 83656.72
C35: CONSORCIO DE PRODUCTORES DE FRUTA S.A.. | D35: 761966 | E35: 1196813.52
C36: CORPORACION FRUTICOLA DE CHINCHA S.A.C. | D36: 450016 | E36: 664257.63
C37: I Q F DEL PERU SA | D37: 286560 | E37: 414195.77
C38: JW EXPORTACIONES S.A.C. | D38: 21600 | E38: 27468
C39: MERCANTIL CACERES S.R.LTDA. | D39: 21120 | E39: 26136
C40: PRONATUR E.I.R.L. | D40: 11968.16 | E40: 40378.03
B41: Total FRANCE | D41: 3058499.16 | E41: 4344562.21
B42: GERMANY | C42: CAMPOSOL S.A. | D42: 60 | E42: 15
C43: COMISION DE PROMOCION DEL PERU PARA LA EXPORTACION Y EL TURISMO - PROMPERU | D43: 0.243 | E43: 0.01
B44: Total GERMANY | D44: 60.243 | E44: 15.01
B45: GUATEMALA | C45: FRUPACK HUANDO S.A.C. | D45: 36000 | E45: 11640
B46: Total GUATEMALA | D46: 36000 | E46: 11640
B47: IRELAND | C47: PROCESADORA LARAN SAC | D47: 21108 | E47: 29360.04
B48: Total IRELAND | D48: 21108 | E48: 29360.04
B49: JAPAN | C49: NATURANDINA DEL PERU S.A.C. | D49: 1 | E49: 23.26
B50: Total JAPAN | D50: 1 | E50: 23.26
B51: NETHERLANDS | C51: AGRICOLA CHAPI S.A. | D51: 190080 | E51: 287274.24
C52: AGRICOLA COPACABANA DE CHINCHA S.A. | D52: 46820 | E52: 57407.51
C53: AGRICOLA DON RICARDO S.A.C. | D53: 105600 | E53: 124157.61
C54: AGRICOLA IRAZOLA - MAC DONALD S.A.C | D54: 4320 | E54: 4667.85
C55: AGRICOLA LOS AMIGOS S.A | D55: 63276 | E55: 41643.37
C56: AGRO FLEX SOCIEDAD ANONIMA CERRADA | D56: 44754 | E56: 64800
C57: AGRO INDUSTRIAS LAMBERT SAC | D57: 21120 | E57: 45672
C58: AGRO VICTORIA S.A.C. | D58: 147840 | E58: 147840
C59: AGROINDUSTRIA FRUTOS DE HUARAL S.A.C. | D59: 41712 | E59: 49473.6
C60: AGROINDUSTRIAS VERDEFLOR S.A.C. | D60: 710349 | E60: 699730.13
C61: AGROPECUARIA LAS LOMAS DE CHILCA S.A | D61: 486272 | E61: 621432.78
C62: ALVECAR S.A.C. | D62: 20160 | E62: 25094.35
C63: AVO PERU SAC | D63: 165032 | E63: 239110.41
C64: CAMPOSOL S.A. | D64: 4418088 | E64: 4335144.51
C65: CONSORCIO DE PRODUCTORES DE FRUTA S.A.. | D65: 2428822 | E65: 4247538.94
C66: CONSORCIO DEL AGRO S.A.C. | D66: 20664 | E66: 25830
C67: CORPORACION FRUTICOLA DE CHINCHA S.A.C. | D67: 33040 | E67: 60108.6
C68: EXOTIC FOODS SAC | D68: 120960 | E68: 104328
C69: FARM PRODUCTS S.A.C. | D69: 98880 | E69: 134177.04
C70: FRUVER PERU S.A.C. | D70: 387932 | E70: 509432.8
C71: FUNDO LA GLORIA S.A.C. | D71: 63360 | E71: 83164
C72: FUNDO SANTA PATRICIA S.A. | D72: 402324 | E72: 308667.16
C73: GREEN PERU S.A | D73: 315968 | E73: 296028.36
C74: HISPANA DE COMERCIO SAC | D74: 40320 | E74: 49341.6
C75: I Q F DEL PERU SA | D75: 220800 | E75: 286964.37
C76: JW EXPORTACIONES S.A.C. | D76: 40824 | E76: 54936
C77: MERCANTIL CACERES S.R.LTDA. | D77: 21120 | E77: 27456
C78: PERU FRUT TROPICAL SOCIEDAD ANONIMA CERRADA | D78: 1250880 | E78: 1119912
C79: PROCESADORA LARAN SAC | D79: 21120 | E79: 56384.58
C80: QUIMICA SUIZA S A | D80: 274560 | E80: 422552.4
C81: SOCIEDAD AGRICOLA DROKASA S.A. | D81: 442869.7 | E81: 400537.23
C82: SOCIEDAD AGRICOLA SATURNO SA | D82: 22000 | E82: 25555.2
C83: SOLIS CACERES S.A.C. | D83: 81600 | E83: 102641.78
C84: SUN LAND FRUITS SOCIEDAD ANONIMA CERRADA | D84: 735236.6 | E84: 749886.6
C85: SUNSHINE EXPORT S.A.C | D85: 162624 | E85: 162624
C86: TRADING FOOD EXPORT E.I.R.L | D86: 105208 | E86: 157101.6
C87: VISUAL IMPACT SOCIEDAD ANONIMA CERRADA - VISUAL IMPACT S.A.C. | D87: 40320 | E87: 47376
C88: WAIMANALO FAIR FRUIT TRADING S.A.C. EN LIQUIDACION | D88: 508800 | E88: 872155
C89: WEA FARMS S.A.C. | D89: 20919 | E89: 27468
B90: Total NETHERLANDS | D90: 14326574.3 | E90: 17075615.62
B91: NETHERLANDS ANTILLES | C91: PERU FRUT TROPICAL SOCIEDAD ANONIMA CERRADA | D91: 66240 | E91: 57960
B92: Total NETHERLANDS ANTILLES | D92: 66240 | E92: 57960
B93: SPAIN | C93: AGRICOLA CHAPI S.A. | D93: 126976 | E93: 196528.32
C94: AGRICOLA COPACABANA DE CHINCHA S.A. | D94: 54884 | E94: 77634.95
C95: AGRICOLA DON RICARDO S.A.C. | D95: 211680 | E95: 252658
C96: AGRICOLA IRAZOLA - MAC DONALD S.A.C | D96: 15544 | E96: 16091.31
C97: AGRICOLA LOS AMIGOS S.A | D97: 35904 | E97: 51392.23
C98: AGRO VICTORIA S.A.C. | D98: 124704 | E98: 87292.8
C99: AGROINDUSTRIA FRUTOS DE HUARAL S.A.C. | D99: 337000 | E99: 386859.48
C100: AGROINDUSTRIAS FRUTICOLA NORTE SOCIEDAD COMERCIAL DE RESPONSABILIDAD LIMITADA | D100: 20000 | E100: 18000
C101: AGROINDUSTRIAS VERDEFLOR S.A.C. | D101: 1746818.72 | E101: 1949268.02
C102: AGROPECUARIA LAS LOMAS DE CHILCA S.A | D102: 339680 | E102: 392456.91
C103: AVO PERU SAC | D103: 93984 | E103: 121538.14
C104: CAMPOSOL S.A. | D104: 4037906 | E104: 3979443.68
C105: COMPAÐIA PERUANA DE CONSTRUCCION HERMANOS S.A.C. - CPC HNOS. S.A.C. | D105: 130650 | E105: 117585
C106: CONSORCIO DE PRODUCTORES DE FRUTA S.A.. | D106: 1468764 | E106: 2383079.03
C107: CORPORACION FRUTICOLA DE CHINCHA S.A.C. | D107: 125692 | E107: 196230.64
C108: EMPACADORA DE FRUTOS TROPICALES SOCIEDAD ANONIMA CERRADA | D108: 62407 | E108: 56166.3
C109: FRUVER PERU S.A.C. | D109: 41060 | E109: 56817.2
C110: FUNDO SANTA PATRICIA S.A. | D110: 175592 | E110: 198382.75
C111: GREEN PERU S.A | D111: 21120 | E111: 21175.66
C112: GREENLAND PERU S.A.C. | D112: 787104 | E112: 1147615.24
C113: I Q F DEL PERU SA | D113: 235008 | E113: 279019.02
C114: OLEAGINOSA HUACHO S.A.C. | D114: 66000 | E114: 59400
C115: PROCESADORA LARAN SAC | D115: 316506 | E115: 398714.08
C116: SOCIEDAD AGRICOLA SATURNO SA | D116: 271849 | E116: 248348.08
C117: SOLIS CACERES S.A.C. | D117: 1151286 | E117: 1355185.76
C118: TRADING FOOD EXPORT E.I.R.L | D118: 108740 | E118: 142848.9
C119: VISUAL IMPACT SOCIEDAD ANONIMA CERRADA - VISUAL IMPACT S.A.C. | D119: 109666 | E119: 124760.2
C120: WAIMANALO FAIR FRUIT TRADING S.A.C. EN LIQUIDACION | D120: 106176 | E120: 182028
B121: Total SPAIN | D121: 12322700.72 | E121: 14496519.7
B122: SWITZERLAND | C122: CONSORCIO DE PRODUCTORES DE FRUTA S.A.. | D122: 42504 | E122: 83046.07
C123: GREEN PERU S.A | D123: 2016 | E123: 3024
B124: Total SWITZERLAND | D124: 44520 | E124: 86070.07
B125: UNITED KINGDOM | C125: AGRICOLA COPACABANA DE CHINCHA S.A. | D125: 265100 | E125: 403871.96
C126: AGRICOLA DON RICARDO S.A.C. | D126: 487008 | E126: 749906.15
C127: AGRICOLA LOS AMIGOS S.A | D127: 34848 | E127: 34461.8
C128: AGROINDUSTRIAS AIB S.A | D128: 15.5 | E128: 23
C129: AGROINDUSTRIAS VERDEFLOR S.A.C. | D129: 155222 | E129: 130091.22
C130: AGROPECUARIA LAS LOMAS DE CHILCA S.A | D130: 126720 | E130: 225575.42
C131: CAMPOSOL S.A. | D131: 844578 | E131: 1166160.99
C132: CONSORCIO DE PRODUCTORES DE FRUTA S.A.. | D132: 1449594 | E132: 2346547.26
C133: CONSORCIO DEL AGRO S.A.C. | D133: 123656 | E133: 154140
C134: CORPORACION FRUTICOLA DE CHINCHA S.A.C. | D134: 295424 | E134: 454814.18
C135: FERTILIZANTES DEL SUR SOCIEDAD ANONIMA CERRADA - FERTISUR S.A.C. | D135: 20328 | E135: 25410
C136: FUNDO SANTA PATRICIA S.A. | D136: 91872 | E136: 118988.13
C137: I Q F DEL PERU SA | D137: 256848 | E137: 284513.33
C138: PROCESADORA LARAN SAC | D138: 992366 | E138: 1474096.79
C139: PRONATUR E.I.R.L. | D139: 40.72 | E139: 92.27
C140: SOCIEDAD AGRICOLA DROKASA S.A. | D140: 190080 | E140: 285844.3
C141: SOLIS CACERES S.A.C. | D141: 430454 | E141: 537615.5
C142: SUNSHINE EXPORT S.A.C | D142: 81312 | E142: 81312
B143: Total UNITED KINGDOM | D143: 5845466.22 | E143: 8473464.3
B144: UNITED STATES | C144: AGROINDUSTRIAS AIB S.A | D144: 22881.6 | E144: 27857.92
C145: AGROINDUSTRIAS FRUTICOLA NORTE SOCIEDAD COMERCIAL DE RESPONSABILIDAD LIMITADA | D145: 19600 | E145: 17640
C146: CORPORACION FRUTICOLA DE CHINCHA S.A.C. | D146: 11060 | E146: 16793.27
C147: PRONATUR E.I.R.L. | D147: 456.96 | E147: 1080.28
B148: Total UNITED STATES | D148: 53998.56 | E148: 63371.47
A149: Total 2007 | D149: 37409756.3 | E149: 46889760.32
A150: 2008 | B150: CANADA | C150: AVO PERU SAC | D150: 105600 | E150: 194832
C151: CAMPOSOL S.A. | D151: 260216 | E151: 513459.16
C152: ELSSY MARI SOCIEDAD COMERCIAL DE RESPONS | D152: 3.2 | E152: 8
C153: FMP PERU S.A.C. | D153: 19.5 | E153: 20
C154: FPG STERLING DEL PERU S.A.C. | D154: 8 | E154: 4
C155: HASS PERU S.A. | D155: 84480 | E155: 158400
B156: Total CANADA | D156: 450326.7 | E156: 866723.16
B157: CHILE | C157: CAMPOSOL S.A. | D157: 24300 | E157: 31903.65
C158: PHOENIX FOODS S.A.C. | D158: 63360 | E158: 88492.8
C159: YUGRA SOSA MARIO MARTIN | D159: 365609 | E159: 109684.5
B160: Total CHILE | D160: 453269 | E160: 230080.95
B161: FRANCE | C161: AGRICOLA COPACABANA DE CHINCHA S.A. | D161: 817940 | E161: 872247.08
C162: AGRICOLA DON RICARDO S.A.C. | D162: 356160 | E162: 825109.07
C163: AGRO RIO SECO SOCIEDAD ANONIMA CERRADA | D163: 84480 | E163: 109355.87
C164: AGRO VICTORIA S.A.C. | D164: 42240 | E164: 59136
C165: AGROINDUSTRIAS VERDEFLOR S.A.C. | D165: 22080 | E165: 28195.61
C166: AVO PERU SAC | D166: 106240 | E166: 296959.28
C167: CAMPOSOL S.A. | D167: 314832 | E167: 359692.91
C168: CONSORCIO DE PRODUCTORES DE FRUTA S.A.. | D168: 485752 | E168: 682852.13
C169: CORPORACION CAMPO VERDE S.A.C. | D169: 38670 | E169: 45408
C170: CORPORACION FRUTICOLA DE CHINCHA S.A.C. | D170: 1252744 | E170: 1768794.77
C171: FPG STERLING DEL PERU S.A.C. | D171: 227132 | E171: 395796.25
C172: FRUVER PERU S.A.C. | D172: 40320 | E172: 67536
C173: HASS PERU S.A. | D173: 24288 | E173: 71895.7
C174: I Q F DEL PERU SA | D174: 60672 | E174: 156917.96
C175: MIRANDA EXPORT S.A.C. | D175: 80640 | E175: 136572.59
C176: PRONATUR E.I.R.L. | D176: 2538.19 | E176: 9901.18
B177: Total FRANCE | D177: 3956728.19 | E177: 5886370.4
B178: GERMANY | C178: CAMPOSOL S.A. | D178: 43.256 | E178: 12
C179: CONSORCIO DE PRODUCTORES DE FRUTA S.A.. | D179: 21120 | E179: 31856.64
C180: PRONATUR E.I.R.L. | D180: 261.19 | E180: 813.42
B181: Total GERMANY | D181: 21424.446 | E181: 32682.06
B182: IRELAND | C182: SOCIEDAD AGRICOLA DROKASA S.A. | D182: 21120 | E182: 33275.57
B183: Total IRELAND | D183: 21120 | E183: 33275.57
B184: LITHUANIA | C184: CAMPOSOL S.A. | D184: 21120 | E184: 37476.34
B185: Total LITHUANIA | D185: 21120 | E185: 37476.34
B186: NETHERLANDS | C186: AGRICOLA COPACABANA DE CHINCHA S.A. | D186: 53056 | E186: 60438.6
C187: AGRICOLA DON RICARDO S.A.C. | D187: 40320 | E187: 96734.06
C188: AGRICOLA LOS LIBERTADORES S.A.C. | D188: 42624 | E188: 63230.94
C189: AGRISYS EXPORT PERU SOCIEDAD ANONIMA CERRADA | D189: 359340 | E189: 545939
C190: AGRO INDUSTRIAS LAMBERT SAC | D190: 21500 | E190: 44000
C191: AGRO RIO SECO SOCIEDAD ANONIMA CERRADA | D191: 276480 | E191: 413270.89
C192: AGRO VICTORIA S.A.C. | D192: 209856 | E192: 293798.4
C193: AGRO WORLD EXPORT EMPRESA INDIVIDUAL DE | D193: 262649 | E193: 390076.25
C194: AGROINCA PRODUCTOS PERUANOS DE EXP. SA | D194: 19200 | E194: 44375.49
C195: AGROINDUSTRIAS VERDEFLOR S.A.C. | D195: 3136072.1 | E195: 4543999.03
C196: AGROMAR INDUSTRIAL S.A. | D196: 21120 | E196: 54132.49
C197: AGROPECUARIA LAS LOMAS DE CHILCA S.A | D197: 452086 | E197: 685114.41
C198: ANDEAN SUN PERU S.A.C. | D198: 39488 | E198: 85347.8
C199: AVO PERU SAC | D199: 802408 | E199: 2244668.49
C200: CAMPOSOL S.A. | D200: 7683517 | E200: 9183289.56
C201: CONSORCIO AGRICOLA EUROPERU SOCIEDAD ANONIMA CERRADA | D201: 121565 | E201: 201059.4
C202: CONSORCIO DE PRODUCTORES DE FRUTA S.A.. | D202: 3453012 | E202: 4266945.9
C203: CORPORACION FRUTICOLA DE CHINCHA S.A.C. | D203: 31808 | E203: 26548.25
C204: DANPER TRUJILLO S.A.C. | D204: 272940 | E204: 434376.51
... 983 more rows

Sheet tabladinamica
B3: año | C3: PAIS_DESC | D3: EXPORTADOR | E3: Cantidad Fisica en Kg | F3: Valor FOB en US$
B4: 2007 | E4: 37409756.3 | F4: 46889760.32
C5: AGUAS INTERNACIONALES | E5: 3 | F5: 5.4
D6: REINAS DEL PACIFICO S.A.C. | E6: 3 | F6: 5.4
C8: ALGERIA | E8: 168272 | F8: 295622.27
D9: AGROINDUSTRIAS VERDEFLOR S.A.C. | E9: 21576 | F9: 27351.05
D10: CONSORCIO DE PRODUCTORES DE FRUTA S.A.. | E10: 105732 | F10: 220734.52
D11: SOLIS CACERES S.A.C. | E11: 40964 | F11: 47536.7
C13: ARUBA | E13: 83.095 | F13: 118.2
D14: CAM DE RIOJAS ADRIANA VICTORIA | E14: 83 | F14: 116.2
D15: IMPORT & EXPORT SOLANO SOCIEDAD ANONIMA | E15: 0.095 | F15: 2
C17: BELGIUM | E17: 313968 | F17: 418618.78
D18: CAMPOSOL S.A. | E18: 252480 | F18: 336700.78
D19: SOLIS CACERES S.A.C. | E19: 61488 | F19: 81918
C21: CANADA | E21: 752576 | F21: 1433871.04
D22: CAMPOSOL S.A. | E22: 625232 | F22: 1229632
D23: SOCIEDAD AGRICOLA DROKASA S.A. | E23: 106224 | F23: 167279.04
D24: WAIMANALO FAIR FRUIT TRADING S.A.C. EN LIQUIDACION | E24: 21120 | F24: 36960
C26: CHILE | E26: 399671 | F26: 102918.25
D27: CAMPOSOL S.A. | E27: 12000 | F27: 6000
D28: YUGRA SOSA MARIO MARTIN | E28: 387671 | F28: 96918.25
C30: CHINA | E30: 15 | F30: 4.7
D31: COMISION DE PROMOCION DEL PERU PARA LA EXPORTACION Y EL TURISMO - PROMPERU | E31: 15 | F31: 4.7
C33: FRANCE | E33: 3058499.16 | F33: 4344562.21
D34: AGRICOLA CHAPI S.A. | E34: 265568 | F34: 360745.5
D35: AGRICOLA COPACABANA DE CHINCHA S.A. | E35: 459004 | F35: 579563.22
D36: AGRICOLA DON RICARDO S.A.C. | E36: 634824 | F36: 873824.12
D37: AGROINDUSTRIAS VERDEFLOR S.A.C. | E37: 22080 | F37: 21580.99
D38: ASOC.PARA DESAR.INT.DE LAS COMUN.DEL SUR | E38: 19200 | F38: 26400
D39: AVO PERU SAC | E39: 21068 | F39: 29542.71
D40: CAMPOSOL S.A. | E40: 83525 | F40: 83656.72
D41: CONSORCIO DE PRODUCTORES DE FRUTA S.A.. | E41: 761966 | F41: 1196813.52
D42: CORPORACION FRUTICOLA DE CHINCHA S.A.C. | E42: 450016 | F42: 664257.63
D43: I Q F DEL PERU SA | E43: 286560 | F43: 414195.77
D44: JW EXPORTACIONES S.A.C. | E44: 21600 | F44: 27468
D45: MERCANTIL CACERES S.R.LTDA. | E45: 21120 | F45: 26136
D46: PRONATUR E.I.R.L. | E46: 11968.16 | F46: 40378.03
C48: GERMANY | E48: 60.243 | F48: 15.01
D49: CAMPOSOL S.A. | E49: 60 | F49: 15
D50: COMISION DE PROMOCION DEL PERU PARA LA EXPORTACION Y EL TURISMO - PROMPERU | E50: 0.243 | F50: 0.01
C52: GUATEMALA | E52: 36000 | F52: 11640
D53: FRUPACK HUANDO S.A.C. | E53: 36000 | F53: 11640
C55: IRELAND | E55: 21108 | F55: 29360.04
D56: PROCESADORA LARAN SAC | E56: 21108 | F56: 29360.04
C58: JAPAN | E58: 1 | F58: 23.26
D59: NATURANDINA DEL PERU S.A.C. | E59: 1 | F59: 23.26
C61: NETHERLANDS | E61: 14326574.3 | F61: 17075615.62
D62: AGRICOLA CHAPI S.A. | E62: 190080 | F62: 287274.24
D63: AGRICOLA COPACABANA DE CHINCHA S.A. | E63: 46820 | F63: 57407.51
D64: AGRICOLA DON RICARDO S.A.C. | E64: 105600 | F64: 124157.61
D65: AGRICOLA IRAZOLA - MAC DONALD S.A.C | E65: 4320 | F65: 4667.85
D66: AGRICOLA LOS AMIGOS S.A | E66: 63276 | F66: 41643.37
D67: AGRO FLEX SOCIEDAD ANONIMA CERRADA | E67: 44754 | F67: 64800
D68: AGRO INDUSTRIAS LAMBERT SAC | E68: 21120 | F68: 45672
D69: AGRO VICTORIA S.A.C. | E69: 147840 | F69: 147840
D70: AGROINDUSTRIA FRUTOS DE HUARAL S.A.C. | E70: 41712 | F70: 49473.6
D71: AGROINDUSTRIAS VERDEFLOR S.A.C. | E71: 710349 | F71: 699730.13
D72: AGROPECUARIA LAS LOMAS DE CHILCA S.A | E72: 486272 | F72: 621432.78
D73: ALVECAR S.A.C. | E73: 20160 | F73: 25094.35
D74: AVO PERU SAC | E74: 165032 | F74: 239110.41
D75: CAMPOSOL S.A. | E75: 4418088 | F75: 4335144.51
D76: CONSORCIO DE PRODUCTORES DE FRUTA S.A.. | E76: 2428822 | F76: 4247538.94
D77: CONSORCIO DEL AGRO S.A.C. | E77: 20664 | F77: 25830
D78: CORPORACION FRUTICOLA DE CHINCHA S.A.C. | E78: 33040 | F78: 60108.6
D79: EXOTIC FOODS SAC | E79: 120960 | F79: 104328
D80: FARM PRODUCTS S.A.C. | E80: 98880 | F80: 134177.04
D81: FRUVER PERU S.A.C. | E81: 387932 | F81: 509432.8
D82: FUNDO LA GLORIA S.A.C. | E82: 63360 | F82: 83164
D83: FUNDO SANTA PATRICIA S.A. | E83: 402324 | F83: 308667.16
D84: GREEN PERU S.A | E84: 315968 | F84: 296028.36
D85: HISPANA DE COMERCIO SAC | E85: 40320 | F85: 49341.6
D86: I Q F DEL PERU SA | E86: 220800 | F86: 286964.37
D87: JW EXPORTACIONES S.A.C. | E87: 40824 | F87: 54936
D88: MERCANTIL CACERES S.R.LTDA. | E88: 21120 | F88: 27456
D89: PERU FRUT TROPICAL SOCIEDAD ANONIMA CERRADA | E89: 1250880 | F89: 1119912
D90: PROCESADORA LARAN SAC | E90: 21120 | F90: 56384.58
D91: QUIMICA SUIZA S A | E91: 274560 | F91: 422552.4
D92: SOCIEDAD AGRICOLA DROKASA S.A. | E92: 442869.7 | F92: 400537.23
D93: SOCIEDAD AGRICOLA SATURNO SA | E93: 22000 | F93: 25555.2
D94: SOLIS CACERES S.A.C. | E94: 81600 | F94: 102641.78
D95: SUN LAND FRUITS SOCIEDAD ANONIMA CERRADA | E95: 735236.6 | F95: 749886.6
D96: SUNSHINE EXPORT S.A.C | E96: 162624 | F96: 162624
D97: TRADING FOOD EXPORT E.I.R.L | E97: 105208 | F97: 157101.6
D98: VISUAL IMPACT SOCIEDAD ANONIMA CERRADA - VISUAL IMPACT S.A.C. | E98: 40320 | F98: 47376
D99: WAIMANALO FAIR FRUIT TRADING S.A.C. EN LIQUIDACION | E99: 508800 | F99: 872155
D100: WEA FARMS S.A.C. | E100: 20919 | F100: 27468
C102: NETHERLANDS ANTILLES | E102: 66240 | F102: 57960
D103: PERU FRUT TROPICAL SOCIEDAD ANONIMA CERRADA | E103: 66240 | F103: 57960
C105: SPAIN | E105: 12322700.72 | F105: 14496519.7
D106: AGRICOLA CHAPI S.A. | E106: 126976 | F106: 196528.32
D107: AGRICOLA COPACABANA DE CHINCHA S.A. | E107: 54884 | F107: 77634.95
D108: AGRICOLA DON RICARDO S.A.C. | E108: 211680 | F108: 252658
D109: AGRICOLA IRAZOLA - MAC DONALD S.A.C | E109: 15544 | F109: 16091.31
D110: AGRICOLA LOS AMIGOS S.A | E110: 35904 | F110: 51392.23
D111: AGRO VICTORIA S.A.C. | E111: 124704 | F111: 87292.8
D112: AGROINDUSTRIA FRUTOS DE HUARAL S.A.C. | E112: 337000 | F112: 386859.48
D113: AGROINDUSTRIAS FRUTICOLA NORTE SOCIEDAD COMERCIAL DE RESPONSABILIDAD LIMITADA | E113: 20000 | F113: 18000
D114: AGROINDUSTRIAS VERDEFLOR S.A.C. | E114: 1746818.72 | F114: 1949268.02
D115: AGROPECUARIA LAS LOMAS DE CHILCA S.A | E115: 339680 | F115: 392456.91
D116: AVO PERU SAC | E116: 93984 | F116: 121538.14
D117: CAMPOSOL S.A. | E117: 4037906 | F117: 3979443.68
D118: COMPAÐIA PERUANA DE CONSTRUCCION HERMANOS S.A.C. - CPC HNOS. S.A.C. | E118: 130650 | F118: 117585
D119: CONSORCIO DE PRODUCTORES DE FRUTA S.A.. | E119: 1468764 | F119: 2383079.03
D120: CORPORACION FRUTICOLA DE CHINCHA S.A.C. | E120: 125692 | F120: 196230.64
D121: EMPACADORA DE FRUTOS TROPICALES SOCIEDAD ANONIMA CERRADA | E121: 62407 | F121: 56166.3
D122: FRUVER PERU S.A.C. | E122: 41060 | F122: 56817.2
D123: FUNDO SANTA PATRICIA S.A. | E123: 175592 | F123: 198382.75
D124: GREEN PERU S.A | E124: 21120 | F124: 21175.66
D125: GREENLAND PERU S.A.C. | E125: 787104 | F125: 1147615.24
D126: I Q F DEL PERU SA | E126: 235008 | F126: 279019.02
D127: OLEAGINOSA HUACHO S.A.C. | E127: 66000 | F127: 59400
D128: PROCESADORA LARAN SAC | E128: 316506 | F128: 398714.08
D129: SOCIEDAD AGRICOLA SATURNO SA | E129: 271849 | F129: 248348.08
D130: SOLIS CACERES S.A.C. | E130: 1151286 | F130: 1355185.76
D131: TRADING FOOD EXPORT E.I.R.L | E131: 108740 | F131: 142848.9
D132: VISUAL IMPACT SOCIEDAD ANONIMA CERRADA - VISUAL IMPACT S.A.C. | E132: 109666 | F132: 124760.2
D133: WAIMANALO FAIR FRUIT TRADING S.A.C. EN LIQUIDACION | E133: 106176 | F133: 182028
C135: SWITZERLAND | E135: 44520 | F135: 86070.07
D136: CONSORCIO DE PRODUCTORES DE FRUTA S.A.. | E136: 42504 | F136: 83046.07
D137: GREEN PERU S.A | E137: 2016 | F137: 3024
C139: UNITED KINGDOM | E139: 5845466.22 | F139: 8473464.3
D140: AGRICOLA COPACABANA DE CHINCHA S.A. | E140: 265100 | F140: 403871.96
D141: AGRICOLA DON RICARDO S.A.C. | E141: 487008 | F141: 749906.15
D142: AGRICOLA LOS AMIGOS S.A | E142: 34848 | F142: 34461.8
D143: AGROINDUSTRIAS AIB S.A | E143: 15.5 | F143: 23
D144: AGROINDUSTRIAS VERDEFLOR S.A.C. | E144: 155222 | F144: 130091.22
D145: AGROPECUARIA LAS LOMAS DE CHILCA S.A | E145: 126720 | F145: 225575.42
D146: CAMPOSOL S.A. | E146: 844578 | F146: 1166160.99
D147: CONSORCIO DE PRODUCTORES DE FRUTA S.A.. | E147: 1449594 | F147: 2346547.26
D148: CONSORCIO DEL AGRO S.A.C. | E148: 123656 | F148: 154140
D149: CORPORACION FRUTICOLA DE CHINCHA S.A.C. | E149: 295424 | F149: 454814.18
D150: FERTILIZANTES DEL SUR SOCIEDAD ANONIMA CERRADA - FERTISUR S.A.C. | E150: 20328 | F150: 25410
D151: FUNDO SANTA PATRICIA S.A. | E151: 91872 | F151: 118988.13
D152: I Q F DEL PERU SA | E152: 256848 | F152: 284513.33
D153: PROCESADORA LARAN SAC | E153: 992366 | F153: 1474096.79
D154: PRONATUR E.I.R.L. | E154: 40.72 | F154: 92.27
D155: SOCIEDAD AGRICOLA DROKASA S.A. | E155: 190080 | F155: 285844.3
D156: SOLIS CACERES S.A.C. | E156: 430454 | F156: 537615.5
D157: SUNSHINE EXPORT S.A.C | E157: 81312 | F157: 81312
C159: UNITED STATES | E159: 53998.56 | F159: 63371.47
D160: AGROINDUSTRIAS AIB S.A | E160: 22881.6 | F160: 27857.92
D161: AGROINDUSTRIAS FRUTICOLA NORTE SOCIEDAD COMERCIAL DE RESPONSABILIDAD LIMITADA | E161: 19600 | F161: 17640
D162: CORPORACION FRUTICOLA DE CHINCHA S.A.C. | E162: 11060 | F162: 16793.27
D163: PRONATUR E.I.R.L. | E163: 456.96 | F163: 1080.28
B165: 2008 | E165: 51289597.86 | F165: 72635267.14
C166: CANADA | E166: 450326.7 | F166: 866723.16
D167: AVO PERU SAC | E167: 105600 | F167: 194832
D168: CAMPOSOL S.A. | E168: 260216 | F168: 513459.16
D169: ELSSY MARI SOCIEDAD COMERCIAL DE RESPONS | E169: 3.2 | F169: 8
D170: FMP PERU S.A.C. | E170: 19.5 | F170: 20
D171: FPG STERLING DEL PERU S.A.C. | E171: 8 | F171: 4
D172: HASS PERU S.A. | E172: 84480 | F172: 158400
C174: CHILE | E174: 453269 | F174: 230080.95
D175: CAMPOSOL S.A. | E175: 24300 | F175: 31903.65
D176: PHOENIX FOODS S.A.C. | E176: 63360 | F176: 88492.8
D177: YUGRA SOSA MARIO MARTIN | E177: 365609 | F177: 109684.5
C179: FRANCE | E179: 3956728.19 | F179: 5886370.4
D180: AGRICOLA COPACABANA DE CHINCHA S.A. | E180: 817940 | F180: 872247.08
D181: AGRICOLA DON RICARDO S.A.C. | E181: 356160 | F181: 825109.07
D182: AGRO RIO SECO SOCIEDAD ANONIMA CERRADA | E182: 84480 | F182: 109355.87
D183: AGRO VICTORIA S.A.C. | E183: 42240 | F183: 59136
D184: AGROINDUSTRIAS VERDEFLOR S.A.C. | E184: 22080 | F184: 28195.61
D185: AVO PERU SAC | E185: 106240 | F185: 296959.28
D186: CAMPOSOL S.A. | E186: 314832 | F186: 359692.91
D187: CONSORCIO DE PRODUCTORES DE FRUTA S.A.. | E187: 485752 | F187: 682852.13
D188: CORPORACION CAMPO VERDE S.A.C. | E188: 38670 | F188: 45408
D189: CORPORACION FRUTICOLA DE CHINCHA S.A.C. | E189: 1252744 | F189: 1768794.77
D190: FPG STERLING DEL PERU S.A.C. | E190: 227132 | F190: 395796.25
D191: FRUVER PERU S.A.C. | E191: 40320 | F191: 67536
D192: HASS PERU S.A. | E192: 24288 | F192: 71895.7
D193: I Q F DEL PERU SA | E193: 60672 | F193: 156917.96
D194: MIRANDA EXPORT S.A.C. | E194: 80640 | F194: 136572.59
D195: PRONATUR E.I.R.L. | E195: 2538.19 | F195: 9901.18
C197: GERMANY | E197: 21424.446 | F197: 32682.06
D198: CAMPOSOL S.A. | E198: 43.256 | F198: 12
D199: CONSORCIO DE PRODUCTORES DE FRUTA S.A.. | E199: 21120 | F199: 31856.64
D200: PRONATUR E.I.R.L. | E200: 261.19 | F200: 813.42
C202: IRELAND | E202: 21120 | F202: 33275.57
D203: SOCIEDAD AGRICOLA DROKASA S.A. | E203: 21120 | F203: 33275.57
C205: LITHUANIA | E205: 21120 | F205: 37476.34
D206: CAMPOSOL S.A. | E206: 21120 | F206: 37476.34
C208: NETHERLANDS | E208: 23116328.7 | F208: 32493442.67
D209: AGRICOLA COPACABANA DE CHINCHA S.A. | E209: 53056 | F209: 60438.6
D210: AGRICOLA DON RICARDO S.A.C. | E210: 40320 | F210: 96734.06
D211: AGRICOLA LOS LIBERTADORES S.A.C. | E211: 42624 | F211: 63230.94
D212: AGRISYS EXPORT PERU SOCIEDAD ANONIMA CERRADA | E212: 359340 | F212: 545939
D213: AGRO INDUSTRIAS LAMBERT SAC | E213: 21500 | F213: 44000
D214: AGRO RIO SECO SOCIEDAD ANONIMA CERRADA | E214: 276480 | F214: 413270.89
D215: AGRO VICTORIA S.A.C. | E215: 209856 | F215: 293798.4
D216: AGRO WORLD EXPORT EMPRESA INDIVIDUAL DE | E216: 262649 | F216: 390076.25
D217: AGROINCA PRODUCTOS PERUANOS DE EXP. SA | E217: 19200 | F217: 44375.49
D218: AGROINDUSTRIAS VERDEFLOR S.A.C. | E218: 3136072.1 | F218: 4543999.03
D219: AGROMAR INDUSTRIAL S.A. | E219: 21120 | F219: 54132.49
D220: AGROPECUARIA LAS LOMAS DE CHILCA S.A | E220: 452086 | F220: 685114.41
D221: ANDEAN SUN PERU S.A.C. | E221: 39488 | F221: 85347.8
D222: AVO PERU SAC | E222: 802408 | F222: 2244668.49
D223: CAMPOSOL S.A. | E223: 7683517 | F223: 9183289.56
D224: CONSORCIO AGRICOLA EUROPERU SOCIEDAD ANONIMA CERRADA | E224: 121565 | F224: 201059.4
D225: CONSORCIO DE PRODUCTORES DE FRUTA S.A.. | E225: 3453012 | F225: 4266945.9
D226: CORPORACION FRUTICOLA DE CHINCHA S.A.C. | E226: 31808 | F226: 26548.25
... 982 more rows
